Workbook

Sheet Data Input
A1: STATE OF ARIZONA CLOSING PACKAGE N - GASB 87 LEASES - Form 71a Collection Form for FY2023 Payable Leases (State as LESSEE)
A2: ----- Due Date 8/11/2023 -----
A3: This FILLABLE form is designed to capture your agency's GASB 87 lease information for NEW leases entered into during FY2023.
A5: Reporting background:
A6: Please complete this template for every lease that qualifies as a GASB 87 lease AND has a start date during FY2023 (July 1, 2022 - June 30, 2023). For example: - Meets scope requirements and is not listed as specifically EXCLUDED, - Total lease payments (plus purchase options) are greater than the Materiality Threshold of $500,000, and - Has a Maximum Possible Lease Term of more than 12 months. You should have completed Form 71 - "Decision Form for Lessee" first to verify qualifications (link at right): | B6: Closing Package Information - Section N - Leases
A8: STEPS:
A9: 1. Collect the Lease Contracts and other information for all NEW Leases entered into during FY2023 and document whether they qualify as GASB 87 Leases (either through the Decision Form or some other similar process). If any leases qualify as GASB 87 Leases, then this Lease Collection Form must be completed.
A10: 2. Save a copy of this Lease Collection Form and rename with your Agency's 3 letter ID (for example, "ADA Form 71a - Collection Form for Lessees - FY2023").
A11: 3. Complete the following sections by entering in the applicable information for each lease within a separate column (starting with column C). There are 10 columns provided. If you have more than 10 GASB 87 Payable Leases, duplicate the form & label as needed (1 of 2, 2 of 2, or 1 of 3, 2 of 3, 3 of 3, etc).
A12: 4. Maintain all documentation and supporting workpapers to support your conclusion for audit purposes in a permanent file (i.e. Lease Contracts, Decision Form (or substitute), and this Lease Collection Form).
A13: 6. Return a copy of this Lease Collection Form to the ACFR e-mail address at right by the Due Date listed above (copy and paste address). | B13: ACFR@azdoa.gov
A15: Note 1 - The Blue highlighted cells are for manual or drop-down input. The Orange highlighted cells contain formulas and will automatically fill. Please do not change the orange cells.
A16: Note 2 - Do not insert new columns or rows. As noted above, if you have more than 10 leases, duplicate the form instead of inserting new columns.
A17: Note 3 - Several sections below mention the criteria, 'Reasonably Certain'. To be reasonably certain means that there is a greater than probable chance an event will take place.
A19: Additional Resources can be found on the GAO website (including the Decision Form): | B19: GAO Lease Resources
A21: For additional questions on any of the above steps (including filling out this form), please send questions to the ACFR e-mail address above.
A23: I. Agency Information
A24: (Only need to fill out this section once for entire worksheet)
A25: Agency three letter ID (Example: Arizona Department of Administration = ADA):
A26: Preparer Name:
A27: Preparer E-mail:
A28: Preparer Phone:
A29: Date Completed:
A30: Approved by:
A32: How many qualifying GASB 87 Payable Leases were entered into during FY2023? If more than 10, the agency will need to fill out multiple forms (label them 1 of 2, 2 of 2, or 1 of 3, 2 of 3, 3 of 3, etc)
A34: II. General Information | B34: Example (complex) | C34: Lease # 1 | D34: Lease # 2 | E34: Lease # 3 | F34: Lease # 4 | G34: Lease # 5 | H34: Lease # 6 | I34: Lease # 7 | J34: Lease # 8 | K34: Lease # 9 | L34: Lease # 10
A35: 1. Contract # (For building or office space leases, contact Nola Barnes, Assistant Director, General Services Division, for your Contract # if unknown. For other types of leases where contract # is unknown, please create your own.) | B35: KR12-3456
A37: 2. Name of the Lessor (Vendor where payments are sent) | B37: ABC Property Management, Inc.
A39: 3. Address of the Leased Property or Description of Leased Asset
A40: If leasing office space, land or right-of-way, enter the full address of the leased property. For equipment or something else, provide a description of the leased asset (for example: HP 4700 Copier on 3rd Floor or 2021 Ford F150 truck, VIN #ABC123). | B40: 1234 Beaver St, Suite 300, Mayberry, AZ 86123
A42: 4. Is the lease any of the following (for disclosure only):
A43: a. Sublease - the lessee leases out the asset to another party. Example: A state agency leases a floor in a building from a vendor and rents a room to another entity. The State acts as both Lessee and Lessor. Since the other parties involved are 2 different entities, both sides of the lease must be reported separately and should NOT be netted together. | B43: No
A44: b. Sale-leaseback - the sale of a property with an agreement that it will then be leased back. Example: A state agency sells a piece of property to a non-state company. The sale includes a contractual agreement that the agency will lease office space on the property back from the company. The State acts as both Seller and Lessee. | B44: No
A45: c. Lease-leaseback - the lease of a property to a tenant with the agreement that the property will then be leased back from that same party. Example: A state agency owns a piece of land and leases it to a non-state company. The agreement obligates the company to build an office and lease it back to the state agency. The State acts as both Lessee and Lessor. In this case, since the other party involved is the same entity on both sides of the transaction, the lease proceeds and payouts will be netted for reporting purposes. | B45: No
A46: If any of the 3 questions above are answered Yes, you will be contacted by the GAAP Group for additional info.
A48: 5. Is the entire lease payment paid from One Source of funding or Divided between Funds or Agencies? | B48: Divided - Fill out Gen Extra Info Tab
A49: If the payment is divided, then please switch to the "Gen Extra Info" Tab to fill out the payment split info (click on hyperlink to the right for correct corresponding Lease # column). | B49: Example - Gen Extra Info | C49: Lease # 1 - Gen Extra Info | D49: Lease # 2 - Gen Extra Info | E49: Lease # 3 - Gen Extra Info | F49: Lease # 4 - Gen Extra Info | G49: Lease # 5 - Gen Extra Info | H49: Lease # 6 - Gen Extra Info | I49: Lease # 7 - Gen Extra Info | J49: Lease # 8 - Gen Extra Info | K49: Lease # 9 - Gen Extra Info | L49: Lease # 10 - Gen Extra Info
A50: If the funding is all from One Source, please provide the following Chart of Accounts (COA) Elements below. REQUIRED elements are starred (*). Use any other COA indicated below that will help identify the payments made for each lease.
A51: Agency * | B51: see Gen Extra Info Tab
A52: Fund *
A53: Object *
A54: Appropriation
A55: Unit
A56: Task
A57: Sub Task
A58: Program
A59: Phase
A60: Program Period
A61: Dept Object
A63: III. Asset Information
A64: 6. Asset type that is being leased
A65: Using the drop down list, select the Asset Type that is being leased. If the leased asset type is not listed, please choose a description that is closest to your leased asset (or contact the GAAP Group for further assistance). | B65: Leased Constructed Buildings (Office Space)
A67: Useful life of the leased asset
A68: 7. Useful life per Capital Asset conventions for the State (will automatically fill) | B68: =VLOOKUP(B65,VLookup!$A$15:$C$29,3,FALSE) -> 480 | C68: =VLOOKUP(C65,VLookup!$A$15:$C$29,3,FALSE) ->  | D68: =VLOOKUP(D65,VLookup!$A$15:$C$29,3,FALSE) ->  | E68: =VLOOKUP(E65,VLookup!$A$15:$C$29,3,FALSE) ->  | F68: =VLOOKUP(F65,VLookup!$A$15:$C$29,3,FALSE) ->  | G68: =VLOOKUP(G65,VLookup!$A$15:$C$29,3,FALSE) ->  | H68: =VLOOKUP(H65,VLookup!$A$15:$C$29,3,FALSE) ->  | I68: =VLOOKUP(I65,VLookup!$A$15:$C$29,3,FALSE) ->  | J68: =VLOOKUP(J65,VLookup!$A$15:$C$29,3,FALSE) ->  | K68: =VLOOKUP(K65,VLookup!$A$15:$C$29,3,FALSE) ->  | L68: =VLOOKUP(L65,VLookup!$A$15:$C$29,3,FALSE) -> 
A70: 8. Total Remaining Lease Term per #18? (will automatically fill once completed below) | B70: =B112 -> 96 | C70: 1 | D70: =D112 -> 1 | E70: 1 | F70: 1 | G70: 1 | H70: 1 | I70: 1 | J70: 1 | K70: 1 | L70: 1
A72: Useful life for Leased Asset (will automatically fill) - HIDE THIS LINE IN FINAL VERSION | B72: =IF(B68="Not Depreciable",B70,IF(B68<B70,B68,B70)) -> 96 | D72: =IF(D68="Not Depreciable",D70,IF(D68<D70,D68,D70)) -> 
A73: 9. Purchase option
A74: If the lease has a purchase option, is the agency reasonably certain it will be exercised? | B74: Yes
A76: 10. Useful Life for Leased Asset based on answers above (will automatically fill) | B76: =IF(B74="Yes",B68,B72) -> 480 | D76: =IF(D74="Yes",D68,D72) -> 
A78: 11. Additional considerations for measurement of Lease Asset:
A79: Per GASB 87, Lease Asset cost = + Initial Lease Liability (calculated in PV calc tab) + Lease payments made at or before start of lease (see (a) below) - Lease incentives received at or before start of lease (see (b) below) + Initial direct costs that are ancillary charges necessary to place the lease asset into service (see (c) below)
A80: a. Enter the amount the State (Lessee) paid to the Lessor at or before the start of the lease. - For example, a downpayment required to be paid (in addition to the first lease payment), or - Other costs required to be reimbursed directly to the Lessor - Do NOT include leasehold improvements paid for by the State to a contractor - that should be accounted for as a leasehold improvement asset and is accounted for separately from this lease asset | B80: 25000
A81: b. Enter the amount the Lessor provided as incentives at or before the start of the lease. - For example, paying a preexisting lease obligation to a third party in order to gain the lease, or - Reimbursements of Lessee's costs (installation costs, moving costs, etc) | B81: 15000
A82: c. Enter any initial direct costs necessary to place the asset into service. - For example, shipping and/or installation costs - Do NOT include costs that would be considered debt issuance costs | B82: 0
A84: 12. If any amounts are entered in 11 (a), (b), or (c), please describe (indicate which question you are answering if more than one) | B84: (a) Reimburse lessor for leasehold improvements above allowance; (b) Lessor reimbursed moving costs
A86: 13. Please provide the COA Elements below where the payment (or incentive received from the Lessor) was posted. REQUIRED elements are starred (*):
A87: NOTE - if more than one, indicate with the corresponding letter (i.e. Fund: (a) 1000, (b) AD1200)
A88: Agency * | B88: (a & b) ADA
A89: Fund * | B89: (a & b) 1000
A90: Object or Revenue Source (please indicate which one) * | B90: (a) O - 7221, (b) O - 7599
A91: Appropriation
A92: Unit
A93: Task
A94: Sub Task
A95: Program
A96: Phase
A97: Program Period
A98: Dept Object
A100: IV. Lease Term
A101: 14. Lease commencement date
A102: Enter the lease start date - because this form is specifically for New leases entered into during FY2023, the dates should be between July 1, 2022 and June 30, 2023. | B102: 2022-12-01
A104: 15. Contracted Lease End Date - Enter the date the contracted lease term ends. | B104: 2027-11-30
A105: Lease Term in months (will automatically fill) - HIDE THIS LINE IN FINAL VERSION | B105: =ROUND(DATEDIF(B102,B104,"M"),0)+1 -> 60 | C105: 1 | D105: =ROUND(DATEDIF(D102,D104,"M"),0)+1 -> 1 | E105: 1 | F105: 1 | G105: 1 | H105: 1 | I105: 1 | J105: 1 | K105: 1 | L105: 1
A107: 16. Options to extend term
A108: If lease extensions are available in the contract, AND the agency is reasonably certain to exercise it, enter # of months available to extend the lease. | B108: 36
A110: 17. Lease End Date including Extensions (will automatically fill). | B110: =EDATE(B102,B112)-1 -> 2030-11-30 | C110: =EDATE(C102,C112)-1 -> 1900-01-30 | D110: =EDATE(D102,D112)-1 -> 1900-01-30 | E110: 1900-01-30 | F110: 1900-01-30 | G110: 1900-01-30 | H110: 1900-01-30 | I110: 1900-01-30 | J110: 1900-01-30 | K110: 1900-01-30 | L110: 1900-01-30
A112: 18. Total Lease Term including Extensions in Months (will automatically fill) | B112: =B105+B108 -> 96 | C112: =C105+C108 -> 1 | D112: =D105+D108 -> 1 | E112: 1 | F112: 1 | G112: 1 | H112: 1 | I112: 1 | J112: 1 | K112: 1 | L112: 1
A114: 19. Frequency of lease payments
A115: Enter how often lease payments are made (Monthly, Quarterly, Semi-Annually, Annually). If payments are Less Often than Annually, choose Annually from the dropdown list here (frequency must be at least Annually for Present Value Calculation to work). There is a space in the PV Calc tab to describe the payment frequency if Less Often than Annually (Step #1f). | B115: Quarterly
A116: # of pmts/yr - HIDE THIS LINE IN FINAL VERSION | B116: =IF(B115="Weekly",52,IF(B115="Monthly",12,IF(B115="Quarterly",4,IF(B115="Semi-Annually",2,1)))) -> 4 | C116: =IF(C115="Weekly",52,IF(C115="Monthly",12,IF(C115="Quarterly",4,IF(C115="Semi-Annually",2,1)))) -> 1 | D116: =IF(D115="Weekly",52,IF(D115="Monthly",12,IF(D115="Quarterly",4,IF(D115="Semi-Annually",2,1)))) -> 1 | E116: 1 | F116: 1 | G116: 1 | H116: 1 | I116: 1 | J116: 1 | K116: 1 | L116: 1
A118: 20. How many payments from lease start date (#14) to lease end date including extensions (#17)?
A119: - If payments are monthly, this answer will most likely be the same as the calculated number of months. Please calculate carefully if payments are not monthly. - If payments are Less Often than Annually, list the # of years of the lease term rather than the total # of payments (e.g. payment frequency every 5 years with a 20 year term would have a total of 4 payments, but enter 20 here instead of 4). Again, this is necessary for the Present Value Calculation to work. If this is the case, read PV Calc instructions (Step #1g) carefully. | B119: 32
A121: 21. Was the first lease payment made at the beginning or at the end of the first payment period (a period is the length of time between payments - see #19 frequency of payments)?
A122: - For example, lease began on 4/01 with monthly payments and first payment was due 4/30, then it would be the end of the first payment period. - For a quarterly period, payment within first 45 days would be beginning of the period. | B122: Begin
A123: Coding for Formulas - Begin = 1, End = 0 - HIDE THIS LINE IN FINAL VERSION | B123: =IF(B122="Begin",1,0) -> 1 | C123: =IF(C122="Begin",1,0) -> 0 | D123: =IF(D122="Begin",1,0) -> 0 | E123: 0 | F123: 0 | G123: 0 | H123: 0 | I123: 0 | J123: 0 | K123: 0 | L123: 0
A125: 22. When is the first payment due (most likely would be within FY2023)? | B125: 2022-12-01
A127: V. Lease Liability
A128: Lease payment - PLEASE SEPARATE PAYMENTS TO BE MADE BETWEEN #23, #24 & #25 as much as possible:
A129: 23. Fixed Lease payment - Enter FIRST Fixed Lease Payment Amount here
A130: To calculate the Fixed Lease Payment: (a) Start with the fixed lease periodic payments stated in the contract. If the payment includes utilities, taxes, service costs, etc, and it is not reasonable to separate these portions from the total payment, then enter the total lease payment. If the above listed items are separated in the contract, they should not be included in the fixed lease payment here but detailed below. (b) In addition, add "Fixed In-Substance Fees" to the above amount (see definition below under variable payments). (c) For payments that depend on an index or a rate (such as the Consumer Price Index or a market interest rate), the payment should be initially measured using the index or rate published as of the start of the lease. | B130: 56000
A131: Because payments may not remain the same throughout the lease term, fill out the Payment Schedule on the PV Calc tab. A space is provided (Step #1f) to describe how often payments increase, formulas, appraisal requirements, etc.
A133: 24. Variable Usage Fees over and above Fixed In-Substance Fees (do NOT include variable fees on PV Calc tab)
A134: "Fixed in-Substance Fees" are the Mimimum Usage Costs of a variable usage fee and should be included in the fixed lease payment portion above. For Example, if a copier has a $.01/copy variable monthly fee, but minimum is $500, then $500 is the "Fixed In-Substance Fee" and should be added to the fixed lease portion above, and the variable answer here would be "$.01/copy over 50,000 copies" ($500 is equal to $.01/copy * 50,000). Per GASB 87, also include how the fee is determined. | B134: Shared Space fees in excess of $1,200/qtr will be billed annually - amt determined based on total shared space expenses for the prior year divided pro rata between tenants based on sq. footage less the $4.8K already paid (the $1,200/qtr fee is included in the fixed lease payment)
A136: 25. Utilities, Taxes, Service costs (janitorial or maintenance agreements), or Other additional charges (do NOT include as part of Fixed Lease Payments on PV Calc tab)
A137: a. Enter the amount for any additional charges identified, if paid to the lessor and is separately identified in the lease agreement. | B137: =B130*0.025+1000 -> 2400
A139: b. Please briefly describe the additional charges. | B139: 2.5% occupancy tax + $1,000/qtr for janitorial svcs
A141: 26. Residual Value Guarantee:
A142: a. Does the lease contain a residual value guarantee?
A143: For example, does the lease specify the asset must be returned in a certain condition to avoid a penalty, or must have a certain minimum fair value upon return to the lessor? | B143: No
A145: b. If so, then how much is the maximum residual value guarantee (or penalty amount) listed in the contract? | B145: 0
A147: c. Does the agency believe the leased asset will meet that minimum value or condition to avoid the Residual Value Guarantee fee/penalty at the end of the lease term? | B147: N/A
A148: If No, then enter the amount expected to be owed on the PV Calc tab.
A150: 27. Purchase Option:
A151: Is the agency reasonably certain to exercise that option (will automatically fill from response on #9)? | B151: =IF(B74="Yes","Yes - Fill out on PV Calc Tab","No") -> Yes - Fill out on PV Calc Tab | C151: No | D151: =IF(D74="Yes","Yes - Fill out on PV Calc Tab","No") -> No | E151: No | F151: No | G151: No | H151: No | I151: No | J151: No | K151: No | L151: No
A152: If Yes, then enter the Purchase Price in the PV Calc tab.
A154: 28. Termination penalties:
A155: a. Is there a termination penalty if the lease is terminated before the end of the lease term? | B155: No
A157: b. If so, is the agency reasonably certain to terminate the lease early?
A158: Answer Yes only if the agency believes that a fiscal funding clause or termination clause will be exercised and there will be a penalty assessed if it is. | B158: N/A
A159: If Yes, then enter the termination penalty on the PV Calc tab.
A161: 29. Lease incentives (during lease term):
A162: a. Does the lease agreement contain lease incentives that will occur AFTER the start of the lease term? - For example, Abated or Free Rent periods, - Reductions in rent, - Bonus amounts paid from the lessor to the lessee, etc? | B162: Yes - Fill out on PV Calc Tab
A164: b. If Yes, please describe: | B164: Free Rent Quarter for 12/2023-2/2024
A165: Read instructions on PV Calc tab carefully on how to include lease incentives in the Payment Schedule (#1d & 1e).
A167: VI. Interest Rate
A168: 30. Enter the interest rate for lease (with four digits past the decimal) using one of the three methods listed below:
A169: a. If the interest rate is specifically identified in the contract (explicit rate), use this rate.
A170: b. If the explicit rate is unknown, there may be an implicit rate (please see tab, "Implicit Rate info" for additional information and a place to enter the information to calculate it).
A171: c. If both the explicit interest rate and implicit rate are unknown, identify the interest rate in the table below using the lease term (total lease term in months is copied here from #18 above for ease of reference). | B171: =B112 -> 96 | C171: 1 | D171: =D112 -> 1 | E171: 1 | F171: 1 | G171: 1 | H171: 1 | I171: 1 | J171: 1 | K171: 1 | L171: 1
A172: For example: If initial contract term was 5 years (60 months) plus a 4-year (48 month) extension, for a total of 9 years (108 months) use the Long-Term rate below. | B172: 0.018606
A178: The interest rates have been updated for
A179: FY2023 & will be reassessed each year.
A180: Short-Term in months = 0 - 48 months
A181: Mid-Term in months = 49 - 96 months
A182: Long-Term in months = 97 months or longer
A184: 31. Periodic Interest Rate - based on frequency of payments (will automatically fill) | B184: =ROUND(B172/B116,6) -> 0.004652 | C184: 0 | D184: =ROUND(D172/D116,6) -> 0 | E184: 0 | F184: 0 | G184: 0 | H184: 0 | I184: 0 | J184: 0 | K184: 0 | L184: 0
A186: VII. Calculate the Lease Liability & Lease Asset
A187: 32. Fill out the Lease Payment Schedule on the "PV Calc" tab corresponding to the correct Lease #.
A188: The Present Value of the Lease Liability, Amortization Table and Lease Asset Cost will be calculated in each respective PV Calc tab. These are calculated with macros, and are not required to be completed by the agencies. - At a minimum, the Lease Payment Schedule must be completed. | B188: Example - PV Calc | C188: Lease 1 - PV Calc | D188: Lease 2 - PV Calc | E188: Lease 3 - PV Calc | F188: Lease 4 - PV Calc | G188: Lease 5 - PV Calc | H188: Lease 6 - PV Calc | I188: Lease 7 - PV Calc | J188: Lease 8 - PV Calc | K188: Lease 9 - PV Calc | L188: Lease 10 - PV Calc

Sheet Gen Extra Info
A1: GASB 87 Lease Collection Form - General Extra Info - for Leases paid from multiple sources
A3: If a lease has more than one funding source for the payments during the lease term, please complete the information below.
A5: Note 1 - The blue highlighted cells are for manual or drop-down input. The orange highlighted cells contain formulas and will automatically fill. Please do not change the orange cells.
A6: Note 2 - If the Agency divides out the lease payment with a Cost Allocation Function (or divides it out to more than the 4 lines provided), then ONLY provide the breakout for the 3 REQUIRED COA Elements to reduce the number of lines needed to be reported. The other COA elements may be important for agency or unit internal reporting, but is not necessary for reporting at the ACFR level.
A7: Note 3 - When payments are split between multiple COAs, please ONLY provide split information for the Fixed amount to be paid. Please exclude any variable payments or payments for services, maintenance, taxes, etc that are identified separately within the lease contract.
A9: Use the SAME COLUMN here as was used in the "Data Input" tab. | B9: Example | C9: Lease # 1 | D9: Lease # 2 | E9: Lease # 3 | F9: Lease # 4 | G9: Lease # 5 | H9: Lease # 6 | I9: Lease # 7 | J9: Lease # 8 | K9: Lease # 9 | L9: Lease # 10
A10: Contract # from Data Input tab (will fill automatically) | B10: ='Data Input'!B35 -> KR12-3456 | C10: ='Data Input'!C35 -> 0 | D10: ='Data Input'!D35 -> 0 | E10: ='Data Input'!E35 -> 0 | F10: ='Data Input'!F35 -> 0 | G10: ='Data Input'!G35 -> 0 | H10: ='Data Input'!H35 -> 0 | I10: ='Data Input'!I35 -> 0 | J10: ='Data Input'!J35 -> 0 | K10: ='Data Input'!K35 -> 0 | L10: ='Data Input'!L35 -> 0
A12: Is the payment divided by a Percentage (%), or a Specific Dollar ($) Amount (i.e. 50% paid by one Source, and 50% paid by another Source; or first $1,000 paid by a Grant, the remainder paid by another Source)? | B12: Percentage (%)
A13: Based on your answer, please fill out the proper section below (Percentage or Dollar Amount Split)
A15: Percentage (%) Split:
A16: How many Sources are there (how many funding lines in your lease payment)? | B16: 2
A18: 1 - Percentage of funding from First Source | B18: 0.7
A19: Please provide COA for First Funding Source below. REQUIRED elements are starred (*). Use any other COA indicated below that will help identify the payments made for each lease.
A20: 1a - Agency * | B20: ADA
A21: 1b - Fund * | B21: AD1234
A22: 1c - Object * | B22: 7221
A23: 1d - Appropriation
A24: 1e - Unit
A25: 1f - Task
A26: 1g - Sub Task
A27: 1h - Program
A28: 1i - Phase
A29: 1j - Program Period
A30: 1k - Dept Object
A32: 2 - Percentage of funding from Second Source | B32: 0.3
A33: Please provide COA for Second Funding Source below. REQUIRED elements are starred (*). Use any other COA indicated below that will help identify the payments made for each lease.
A34: 2a - Agency * | B34: DCA
A35: 2b - Fund * | B35: DC4567
A36: 2c - Object * | B36: 7221
A37: 2d - Appropriation
A38: 2e - Unit
A39: 2f - Task
A40: 2g - Sub Task
A41: 2h - Program
A42: 2i - Phase
A43: 2j - Program Period
A44: 2k - Dept Object
A46: 3 - Percentage of funding from Third Source
A47: Please provide COA for Third Funding Source below. REQUIRED elements are starred (*). Use any other COA indicated below that will help identify the payments made for each lease.
A48: 3a - Agency *
A49: 3b - Fund *
A50: 3c - Object *
A51: 3d - Appropriation
A52: 3e - Unit
A53: 3f - Task
A54: 3g - Sub Task
A55: 3h - Program
A56: 3i - Phase
A57: 3j - Program Period
A58: 3k - Dept Object
A60: 4 - Percentage of funding from Fourth Source
A61: Please provide COA for Fourth Funding Source below. REQUIRED elements are starred (*). Use any other COA indicated below that will help identify the payments made for each lease.
A62: 4a - Agency *
A63: 4b - Fund *
A64: 4c - Object *
A65: 4d - Appropriation
A66: 4e - Unit
A67: 4f - Task
A68: 4g - Sub Task
A69: 4h - Program
A70: 4i - Phase
A71: 4j - Program Period
A72: 4k - Dept Object
A74: Specific Dollar ($) Amount Split:
A75: How many Sources are there (how many funding lines in your lease payment)?
A77: 1 - Amount of funding from First Source
A78: Please provide COA for First Funding Source below. REQUIRED elements are starred (*). Use any other COA indicated below that will help identify the payments made for each lease.
A79: 1a - Agency *
A80: 1b - Fund *
A81: 1c - Object *
A82: 1d - Appropriation
A83: 1e - Unit
A84: 1f - Task
A85: 1g - Sub Task
A86: 1h - Program
A87: 1i - Phase
A88: 1j - Program Period
A89: 1k - Dept Object
A91: 2 - Amount of funding from Second Source
A92: Please provide COA for Second Funding Source below. REQUIRED elements are starred (*). Use any other COA indicated below that will help identify the payments made for each lease.
A93: 2a - Agency *
A94: 2b - Fund *
A95: 2c - Object *
A96: 2d - Appropriation
A97: 2e - Unit
A98: 2f - Task
A99: 2g - Sub Task
A100: 2h - Program
A101: 2i - Phase
A102: 2j - Program Period
A103: 2k - Dept Object
A105: 3 - Amount of funding from Third Source
A106: Please provide COA for Third Funding Source below. REQUIRED elements are starred (*). Use any other COA indicated below that will help identify the payments made for each lease.
A107: 3a - Agency *
A108: 3b - Fund *
A109: 3c - Object *
A110: 3d - Appropriation
A111: 3e - Unit
A112: 3f - Task
A113: 3g - Sub Task
A114: 3h - Program
A115: 3i - Phase
A116: 3j - Program Period
A117: 3k - Dept Object
A119: 4 - Amount of funding from Fourth Source
A120: Please provide COA for Fourth Funding Source below. REQUIRED elements are starred (*). Use any other COA indicated below that will help identify the payments made for each lease.
A121: 4a - Agency *
A122: 4b - Fund *
A123: 4c - Object *
A124: 4d - Appropriation
A125: 4e - Unit
A126: 4f - Task
A127: 4g - Sub Task
A128: 4h - Program
A129: 4i - Phase
A130: 4j - Program Period
A131: 4k - Dept Object

Sheet Implicit Rate info
A1: GASB 87 Lease Collection Form - Calculating an Implicit Rate on a Lease
A3: If an interest rate is not explicitely stated within the lease contract, there may be an implicit rate, which can be calculated if the information requested below is available.
A5: In addition to the information provided within the Data Input tab (see orange auto-filled cells below), check the lease contract for availability of the 3 additional data items requested below to determine the Implicit Rate.
A7: All 3 items requested below are needed to calculate the Implicit Rate. If this information is unavailable, then use the Discount Rates provided on the Data Input tab (yellow highlighted table).
A9: If ALL of the information requested below is available for a lease, please enter the information within the correct Lease # column below.
A11: Note - The blue highlighted cells are for manual input. The orange highlighted cells contain formulas and will automatically fill. Please do not change the orange cells.
A13: Use the SAME COLUMN here as was used in the "Data Input" tab. | B13: Example | C13: Lease # 1 | D13: Lease # 2 | E13: Lease # 3 | F13: Lease # 4 | G13: Lease # 5 | H13: Lease # 6 | I13: Lease # 7 | J13: Lease # 8 | K13: Lease # 9 | L13: Lease # 10
A14: Contract # from Data Input tab (will fill automatically) | B14: ='Data Input'!B35 -> KR12-3456 | C14: ='Data Input'!C35 -> 0 | D14: ='Data Input'!D35 -> 0 | E14: ='Data Input'!E35 -> 0 | F14: ='Data Input'!F35 -> 0 | G14: ='Data Input'!G35 -> 0 | H14: ='Data Input'!H35 -> 0 | I14: ='Data Input'!I35 -> 0 | J14: ='Data Input'!J35 -> 0 | K14: ='Data Input'!K35 -> 0 | L14: ='Data Input'!L35 -> 0
A15: Cash Flows at Beginning or End (Section IV, #21 of Data Input tab) | B15: ='Data Input'!B122 -> Begin | C15: ='Data Input'!C122 -> 0 | D15: ='Data Input'!D122 -> 0 | E15: ='Data Input'!E122 -> 0 | F15: ='Data Input'!F122 -> 0 | G15: ='Data Input'!G122 -> 0 | H15: ='Data Input'!H122 -> 0 | I15: ='Data Input'!I122 -> 0 | J15: ='Data Input'!J122 -> 0 | K15: ='Data Input'!K122 -> 0 | L15: ='Data Input'!L122 -> 0
A16: Number of payments (Section IV, #20) | B16: ='Data Input'!B119 -> 32 | C16: ='Data Input'!C119 -> 0 | D16: ='Data Input'!D119 -> 0 | E16: ='Data Input'!E119 -> 0 | F16: ='Data Input'!F119 -> 0 | G16: ='Data Input'!G119 -> 0 | H16: ='Data Input'!H119 -> 0 | I16: ='Data Input'!I119 -> 0 | J16: ='Data Input'!J119 -> 0 | K16: ='Data Input'!K119 -> 0 | L16: ='Data Input'!L119 -> 0
A17: Frequency of payments (Section IV, #19) | B17: ='Data Input'!B115 -> Quarterly | C17: ='Data Input'!C115 -> 0 | D17: ='Data Input'!D115 -> 0 | E17: ='Data Input'!E115 -> 0 | F17: ='Data Input'!F115 -> 0 | G17: ='Data Input'!G115 -> 0 | H17: ='Data Input'!H115 -> 0 | I17: ='Data Input'!I115 -> 0 | J17: ='Data Input'!J115 -> 0 | K17: ='Data Input'!K115 -> 0 | L17: ='Data Input'!L115 -> 0
A18: Date of first payment (Section IV, #22) | B18: ='Data Input'!B125 -> 2022-12-01 | C18: ='Data Input'!C125 -> 00:00:00 | D18: ='Data Input'!D125 -> 00:00:00 | E18: ='Data Input'!E125 -> 00:00:00 | F18: ='Data Input'!F125 -> 00:00:00 | G18: ='Data Input'!G125 -> 00:00:00 | H18: ='Data Input'!H125 -> 00:00:00 | I18: ='Data Input'!I125 -> 00:00:00 | J18: ='Data Input'!J125 -> 00:00:00 | K18: ='Data Input'!K125 -> 00:00:00 | L18: ='Data Input'!L125 -> 00:00:00
A19: Lease Start Date (Section IV, #14) | B19: ='Data Input'!B102 -> 2022-12-01 | C19: ='Data Input'!C102 -> 00:00:00 | D19: ='Data Input'!D102 -> 00:00:00 | E19: ='Data Input'!E102 -> 00:00:00 | F19: ='Data Input'!F102 -> 00:00:00 | G19: ='Data Input'!G102 -> 00:00:00 | H19: ='Data Input'!H102 -> 00:00:00 | I19: ='Data Input'!I102 -> 00:00:00 | J19: ='Data Input'!J102 -> 00:00:00 | K19: ='Data Input'!K102 -> 00:00:00 | L19: ='Data Input'!L102 -> 00:00:00
A20: Lease End Date including Extensions (Section IV, #17) | B20: ='Data Input'!B110 -> 2030-11-30 | C20: ='Data Input'!C110 -> 1900-01-30 | D20: ='Data Input'!D110 -> 1900-01-30 | E20: ='Data Input'!E110 -> 1900-01-30 | F20: ='Data Input'!F110 -> 1900-01-30 | G20: ='Data Input'!G110 -> 1900-01-30 | H20: ='Data Input'!H110 -> 1900-01-30 | I20: ='Data Input'!I110 -> 1900-01-30 | J20: ='Data Input'!J110 -> 1900-01-30 | K20: ='Data Input'!K110 -> 1900-01-30 | L20: ='Data Input'!L110 -> 1900-01-30
A22: 1. Fair value of the asset at commencement
A24: 2. Lessor's expected fair value of the asset at the end of the lease term
A26: 3. Any initial direct costs that the lessor incurs
A28: IF THE IMPLICIT RATE INFO IS FILLED OUT ABOVE, please enter "See Implicit Rate Info tab" within the interest rate cell (Sec VI, #30) on the Data Input tab.
A29: With the information provided above, the GAO office will calculate the Implicit Rate and the Present Value of the Lease.

Sheet How to Enable Macros
A1: YOUR EXCEL TRUST CENTER SETTINGS MUST BE MACRO-ENABLED TO RUN THE MACROS IN THIS FILE.
A2: (This file was created in Excel Version 2016)
A3: To enable settings:
A4: Go to File > Options > Trust Center > Trust Center Settings…
A5: Enable all macros and trust access to the VBA project object model as shown below.

Sheet Example - PV Calc
A1: Present Value Calculations tab - Example (column B) | B1: Contract # | C1: ='Data Input'!B35 -> KR12-3456 | E1: Present Value Table | J1: Amortization Table
A2: Periodic Interest Rate (Section VI, #30-31 from Data Input tab) | B2: ='Data Input'!B184 -> 0.004652 | E2: Period | F2: Payment Amount | G2: Present Value | J2: Period | K2: Date | L2: Beginning Balance | M2: Payment | N2: Principal | O2: Interest | P2: Ending Balance
A3: Cash Flows at Beginning or End (Section IV, #21) | B3: ='Data Input'!B122 -> Begin | C3: Important: | E3: 1 | F3: 56000 | G3: =F3 / (((1+$B$2)) ^ (E3-1)) -> 56000 | J3: 1 | K3: =B6 -> 2022-12-01 | L3: =B25 -> 2524229.847 | M3: 56000 | N3: =M3-O3 -> 56000 | O3: 0 | P3: =L3-N3 -> 2468229.847
A4: Number of payments (Section IV, #20) | B4: ='Data Input'!B119 -> 32 | C4: Do not insert/delete/move | E4: 2 | F4: 56000 | G4: 55740.69429 | J4: 2 | K4: =EDATE($B$6,3) -> 2023-03-01 | L4: =P3 -> 2468229.847 | M4: 56000 | N4: 44517.79 | O4: =ROUND(L4*$B$2,2) -> 11482.21 | P4: 2423712.057
A5: Frequency of payments (Section IV, #19) | B5: ='Data Input'!B115 -> Quarterly | C5: cells B2:B8 | E5: 3 | F5: 56000 | G5: 55482.58928 | J5: 3 | K5: =EDATE($B$6,6) -> 2023-06-01 | L5: 2423712.057 | M5: 56000 | N5: 44724.89 | O5: 11275.11 | P5: 2378987.167
A6: Date of first payment (Section IV, #22) | B6: ='Data Input'!B125 -> 2022-12-01 | C6: (macros depend on them) | E6: 4 | F6: 56000 | G6: 55225.67942 | J6: 4 | K6: =EDATE($B$6,9) -> 2023-09-01 | L6: 2378987.167 | M6: 56000 | N6: 44932.95 | O6: 11067.05 | P6: 2334054.217
A7: Lease Start Date (Section IV, #14) | B7: ='Data Input'!B102 -> 2022-12-01 | E7: 5 | F7: 56000 | G7: 54969.95917 | J7: 5 | K7: =EDATE($B$6,12) -> 2023-12-01 | L7: 2334054.217 | M7: 56000 | N7: 45141.98 | O7: 10858.02 | P7: 2288912.237
A8: Lease End Date including Extensions (Section IV, #17) | B8: ='Data Input'!B110 -> 2030-11-30 | E8: 6 | F8: 56000 | G8: 54715.42303 | J8: 6 | K8: =EDATE($B$6,15) -> 2024-03-01 | L8: 2288912.237 | M8: 56000 | N8: 45351.98 | O8: 10648.02 | P8: 2243560.257
E9: 7 | F9: 56000 | G9: 54462.0655 | J9: 7 | K9: =EDATE($B$6,18) -> 2024-06-01 | L9: 2243560.257 | M9: 56000 | N9: 45562.96 | O9: 10437.04 | P9: 2197997.297
A10: Fixed Lease Payment Schedule (Section V, #23 & see instructions below): | B10: Amount | C10: # of Payments | E10: 8 | F10: 56000 | G10: 54209.88113 | J10: 8 | K10: =EDATE($B$6,21) -> 2024-09-01 | L10: 2197997.297 | M10: 56000 | N10: 45774.92 | O10: 10225.08 | P10: 2152222.377
A11: Payment Amount #1 & # of Payments at this amount | B11: 56000 | C11: 8 | E11: 9 | F11: 0 | G11: 0 | J11: 9 | K11: =EDATE($B$6,24) -> 2024-12-01 | L11: 2152222.377 | M11: 0 | N11: -10012.14 | O11: 10012.14 | P11: 2162234.517
A12: Payment Amount #2 & # of Payments at this amount | B12: 0 | C12: 1 | E12: 10 | F12: 56000 | G12: 53709.01018 | J12: 10 | K12: =EDATE($B$6,27) -> 2025-03-01 | L12: 2162234.517 | M12: 56000 | N12: 45941.29 | O12: 10058.71 | P12: 2116293.227
A13: Payment Amount #3 & # of Payments at this amount | B13: 56000 | C13: 7 | E13: 11 | F13: 56000 | G13: 53460.3128 | J13: 11 | K13: =EDATE($B$6,30) -> 2025-06-01 | L13: 2116293.227 | M13: 56000 | N13: 46155 | O13: 9845 | P13: 2070138.227
A14: Payment Amount #4 & # of Payments at this amount | B14: 59000 | C14: 16 | E14: 12 | F14: 56000 | G14: 53212.76701 | J14: 12 | K14: =EDATE($B$6,33) -> 2025-09-01 | L14: 2070138.227 | M14: 56000 | N14: 46369.72 | O14: 9630.28 | P14: 2023768.507
A15: Totals from add'l table below (if needed) | B15: =B88 -> 0 | C15: =C88 -> 0 | E15: 13 | F15: 56000 | G15: 52966.36747 | J15: 13 | K15: =EDATE($B$6,36) -> 2025-12-01 | L15: 2023768.507 | M15: 56000 | N15: 46585.43 | O15: 9414.57 | P15: 1977183.077
A16: Total Lease Payments (sum of all payment amounts * # of payments) | B16: =(B11*C11)+(B12*C12)+(B13*C13)+(B14*C14)+(B15) -> 1784000 | C16: =SUM(C11:C15) -> 32 | E16: 14 | F16: 56000 | G16: 52721.10887 | J16: 14 | K16: =EDATE($B$6,39) -> 2026-03-01 | L16: 1977183.077 | M16: 56000 | N16: 46802.14 | O16: 9197.86 | P16: 1930380.937
E17: 15 | F17: 56000 | G17: 52476.98593 | J17: 15 | K17: =EDATE($B$6,42) -> 2026-06-01 | L17: 1930380.937 | M17: 56000 | N17: 47019.87 | O17: 8980.13 | P17: 1883361.067
A18: Other Payment Considerations (manually fill blue cells): | C18: Answers per Data Input Tab | E18: 16 | F18: 56000 | G18: 52233.99339 | J18: 16 | K18: =EDATE($B$6,45) -> 2026-09-01 | L18: 1883361.067 | M18: 56000 | N18: 47238.6 | O18: 8761.4 | P18: 1836122.467
A19: Expected Residual Value Guarantee (Section V, #26) | B19: 0 | C19: ='Data Input'!B147 -> N/A | E19: 17 | F19: 59000 | G19: 54777.41849 | J19: 17 | K19: =EDATE($B$6,48) -> 2026-12-01 | L19: 1836122.467 | M19: 59000 | N19: 50458.36 | O19: 8541.64 | P19: 1785664.107
A20: Purchase Option (Section III, #9 & Section V, #27) | B20: 1000000 | C20: ='Data Input'!B151 -> Yes - Fill out on PV Calc Tab | E20: 18 | F20: 59000 | G20: 54523.77389 | J20: 18 | K20: =EDATE($B$6,51) -> 2027-03-01 | L20: 1785664.107 | M20: 59000 | N20: 50693.09 | O20: 8306.91 | P20: 1734971.017
A21: Termination Penalty (Section V, #28) | B21: 0 | C21: ='Data Input'!B158 -> N/A | E21: 19 | F21: 59000 | G21: 54271.30379 | J21: 19 | K21: =EDATE($B$6,54) -> 2027-06-01 | L21: 1734971.017 | M21: 59000 | N21: 50928.91 | O21: 8071.09 | P21: 1684042.107
A22: Total Other Payment Considerations | B22: =SUM(B19:B21) -> 1000000 | E22: 20 | F22: 59000 | G22: 54020.00274 | J22: 20 | K22: =EDATE($B$6,57) -> 2027-09-01 | L22: 1684042.107 | M22: 59000 | N22: 51165.84 | O22: 7834.16 | P22: 1632876.267
A23: Total Undiscounted Cash Flows (Total Payments + Other Considerations) | B23: =B16+B22 -> 2784000 | E23: 21 | F23: 59000 | G23: 53769.86532 | J23: 21 | K23: =EDATE($B$6,60) -> 2027-12-01 | L23: 1632876.267 | M23: 59000 | N23: 51403.86 | O23: 7596.14 | P23: 1581472.407
C24: Important: | E24: 22 | F24: 59000 | G24: 53520.88616 | J24: 22 | K24: =EDATE($B$6,63) -> 2028-03-01 | L24: 1581472.407 | M24: 59000 | N24: 51642.99 | O24: 7357.01 | P24: 1529829.417
A25: Net Present Value (calculated after Macros below run) | B25: =SUM(G:G) -> 2524229.847 | C25: Do not insert/delete/move | E25: 23 | F25: 59000 | G25: 53273.05989 | J25: 23 | K25: =EDATE($B$6,66) -> 2028-06-01 | L25: 1529829.417 | M25: 59000 | N25: 51883.23 | O25: 7116.77 | P25: 1477946.187
C26: NPV must be cell B25 | E26: 24 | F26: 59000 | G26: 53026.38116 | J26: 24 | K26: =EDATE($B$6,69) -> 2028-09-01 | L26: 1477946.187 | M26: 59000 | N26: 52124.59 | O26: 6875.41 | P26: 1425821.597
A27: Additions/Subtractions for Lease Asset Cost (Section III, #11-13) | B27: ='Data Input'!B80-'Data Input'!B81+'Data Input'!B82 -> 10000 | C27: (macros depend on it) | E27: 25 | F27: 59000 | G27: 52780.84467 | J27: 25 | K27: =EDATE($B$6,72) -> 2028-12-01 | L27: 1425821.597 | M27: 59000 | N27: 52367.08 | O27: 6632.92 | P27: 1373454.517
A28: Lease Asset Cost (calculated after Macros below run) | B28: =B25+B27 -> 2534229.847 | E28: 26 | F28: 59000 | G28: 52536.44513 | J28: 26 | K28: =EDATE($B$6,75) -> 2029-03-01 | L28: 1373454.517 | M28: 59000 | N28: 52610.69 | O28: 6389.31 | P28: 1320843.827
E29: 27 | F29: 59000 | G29: 52293.17727 | J29: 27 | K29: =EDATE($B$6,78) -> 2029-06-01 | L29: 1320843.827 | M29: 59000 | N29: 52855.43 | O29: 6144.57 | P29: 1267988.397
A30: The Agency is not required to calculate the Present Value and/or enable Macros, | E30: 28 | F30: 59000 | G30: 52051.03585 | J30: 28 | K30: =EDATE($B$6,81) -> 2029-09-01 | L30: 1267988.397 | M30: 59000 | N30: 53101.32 | O30: 5898.68 | P30: 1214887.077
A31: but Steps 1 & 2 of the instructions below are REQUIRED to be completed. | E31: 29 | F31: 59000 | G31: 51810.01566 | J31: 29 | K31: =EDATE($B$6,84) -> 2029-12-01 | L31: 1214887.077 | M31: 59000 | N31: 53348.35 | O31: 5651.65 | P31: 1161538.727
A32: After completing Steps 1 & 2, if desired to calculate the Present Value, complete Steps 3 - 8: | E32: 30 | F32: 59000 | G32: 51570.1115 | J32: 30 | K32: =EDATE($B$6,87) -> 2030-03-01 | L32: 1161538.727 | M32: 59000 | N32: 53596.52 | O32: 5403.48 | P32: 1107942.207
E33: 31 | F33: 59000 | G33: 51331.3182 | J33: 31 | K33: =EDATE($B$6,90) -> 2030-06-01 | L33: 1107942.207 | M33: 59000 | N33: 53845.85 | O33: 5154.15 | P33: 1054096.357
A34: Note 1: First make sure your Excel settings are correct - | B34: See How to Enable Macros tab | E34: 32 | F34: 1059000 | G34: 917087.3702 | J34: 32 | K34: =EDATE($B$6,93) -> 2030-09-01 | L34: 1054096.357 | M34: 1059000 | N34: 1054096.36 | O34: =ROUND(L34*$B$2,2)-0.02 -> 4903.64 | P34: -0.002602588153
A35: Note 2: Please do not Insert, Delete, or Move any cells, columns or rows as this could cause the Macros to fail.
A36: Note 3: The Blue Cells in columns B & C are for manual input, and the Present Value Table will need to be adjusted in column F.
A37: The Orange cells in columns B & C will automatically fill. Also, the Present Value and Amortization Tables will be generated with the
A38: Macro buttons. Please do not make changes to the orange cells or anywhere within the Tables (except column F).
A40: Step 1 - Fill out the "Fixed Lease Payment Schedule" section above (starting on row 10).
A41: a - If payments escalate over time, list the beginning payment amount (col B) & # of payments to be paid at that amount (col C), then
A42: move to line #2 and list the next payment amount & # of payments at that amount, etc.
A43: b - If an extension is deemed Reasonably Certain to be exercised, but the amount is listed as "negotiable", then use the lease
A44: payment amount just prior to the date of extension for those unknown amounts.
A45: c - If a future payment is variable based on an index or interest rate, then calculate those future payments using the current index or rate.
A46: d - If there is an Abated or Free Rent period (skipped payment) indicated in the lease contract, | C46: Desc of Lease Incentives
A47: indicate that with a $0 payment amount (col B) & the number of payments to be skipped (col C). | C47: ='Data Input'!B164 -> Free Rent Quarter for 12/2023-2/2024
A48: Make sure to put these skipped payments in the correct order chronologically. For example, if there
A49: is a Free Rent period for payment 13, then list the first 12 payments on the first line, then
A50: line #2 as $0 (col B) and 1 (col C), then line #3 as the continuing payments after the Free Rent period.
A51: e - If a Bonus payment from the lessor is included in the contract, subtract that amount from the payment closest to the proper
A52: chronological period (as described in d above). This may cause that payment amount to be negative.
A53: f - Use the blue box below to describe how payments change over time. For example - (a) Payment increases 5% every 10 yrs;
A54: (b) Appraisal to be completed every 25 years; or (c) Payment recalculated every 5 yrs based on CPI, etc.
A55: Also describe payment frequency if Less Often than Annually.
A56: Fixed + Fixed-In-Substance payment for 1st 4 yrs = $56,000; Payment for year 5 = $59,000; extension period amount to be negotiated - therefore, using most recent payment amount before extension period of $59,000.
A59: g - If payments are Less Often than Annually,indicate this in the Payment Schedule above by listing first payment on the first row (1 in
A60: col C), then the 2nd row should show how many years to be skipped in col C ($0 in col B), then the 3rd row will show the 2nd payment.
A61: Repeat until all payments & all years are represented in the Payment Schdl (total in col C should tie to total yrs of lease term & cell B4).
A62: h - If there are not enough lines in the table above, use the table below to input the additional payment amounts, and the totals from
A63: the additional table will automatically be added to the Payment Schedule above.
A64: i - Verify that the total # of payments in cell B4 is the same as the sum of col C (cell C16).
A66: Additional Lease Payment Lines (if needed) | B66: Amount | C66: # of Payments
A67: Payment Amount #5 & # of Payments at this amount | B67: 0 | C67: 0
A68: Payment Amount #6 & # of Payments at this amount | B68: 0 | C68: 0
A69: Payment Amount #7 & # of Payments at this amount | B69: 0 | C69: 0
A70: Payment Amount #8 & # of Payments at this amount | B70: 0 | C70: 0
A71: Payment Amount #9 & # of Payments at this amount | B71: 0 | C71: 0
A72: Payment Amount #10 & # of Payments at this amount | B72: 0 | C72: 0
A73: Payment Amount #11 & # of Payments at this amount | B73: 0 | C73: 0
A74: Payment Amount #12 & # of Payments at this amount | B74: 0 | C74: 0
A75: Payment Amount #13 & # of Payments at this amount | B75: 0 | C75: 0
A76: Payment Amount #14 & # of Payments at this amount | B76: 0 | C76: 0
A77: Payment Amount #15 & # of Payments at this amount | B77: 0 | C77: 0
A78: Payment Amount #16 & # of Payments at this amount | B78: 0 | C78: 0
A79: Payment Amount #17 & # of Payments at this amount | B79: 0 | C79: 0
A80: Payment Amount #18 & # of Payments at this amount | B80: 0 | C80: 0
A81: Payment Amount #19 & # of Payments at this amount | B81: 0 | C81: 0
A82: Payment Amount #20 & # of Payments at this amount | B82: 0 | C82: 0
A83: Payment Amount #21 & # of Payments at this amount | B83: 0 | C83: 0
A84: Payment Amount #22 & # of Payments at this amount | B84: 0 | C84: 0
A85: Payment Amount #23 & # of Payments at this amount | B85: 0 | C85: 0
A86: Payment Amount #24 & # of Payments at this amount | B86: 0 | C86: 0
A87: Payment Amount #25 & # of Payments at this amount | B87: 0 | C87: 0
A88: Total Add'l Lease Payments (will automatically be added to the Schedule above) | B88: =(B67*C67)+(B68*C68)+(B69*C69)+(B70*C70)+(B71*C71)+(B72*C72)+(B73*C73)+(B74*C74)+(B75*C75)+(B76*C76)+(B77*C77)+(B78*C78)+(B79*C79)+(B80*C80)+(B81*C81)+(B82*C82)+(B83*C83)+(B84*C84)+(B85*C85)+(B86*C86)+(B87*C87) -> 0 | C88: =SUM(C67:C87) -> 0
A91: Step 2 - Fill out the "Other Payment Considerations" section (starting on row 18) ONLY if instructed to do so on the Data Input tab
A92: The Residual Value Guarantee, Purchase Option & Termination Penalty lines should only have amounts listed if they are deemed
A93: Reasonably Certain to be exercised based on decisions by the Agency (responses from the Data Input tab are shown in col C).
A95: Steps 3 - 8 are OPTIONAL (calculation of Present Value and Amortization Tables)
A96: Step 3 - Click the Macro button below to Generate the first 2 columns of the Present Value (PV) Table.
A99: Step 4 - Using the Payment Schedule filled out in Steps 1 & 2, fill in the Payment Amounts into col F of the PV Table.
A100: a - If there are 12 payments for the 1st payment amount, and 6 payments for the 2nd payment amount, list the 1st amount in the
A101: first 12 rows of the Table, then the 2nd amount for the next 6 rows, and do the same for the remaining payment amounts listed
A102: in the Payment Schedule until all the payments are filled in on the Table.
A103: b - Make sure not to skip any Free Rent periods. If the Payment Schedule indicates the 13th payment is $0, then row 13 of the
A104: Table should be $0, same as the Payment Schedule.
A105: c - If there are any amounts listed for "Other Payment Considerations", add it to the final payment. For example, if the final
A106: payment is $20,000, and there is a Purchase Option listed for $500,000, then the final payment in the Table should be $520,000.
A107: d - Check to make sure that the sum of all the payments entered into col F of the Table is the same as the Total Undiscounted Cash
A108: Flows in cell B23.
A110: Step 5 - Click the Macro button below to Calculate Net Present Value and Generate the PV and Amortization Tables.
A114: Step 6 - Check data for accuracy:
A115: a - Check the date of the final payment in the Amortization Table and compare to Lease End Date in cell B8. Make sure the final
A116: payment date is reasonable in comparison to the Lease End Date (within same month if payments are Monthly, within the final
A117: quarter if Quarterly, etc).
A118: b - If payments change (there are amounts in Payment Amount #2 + rows), then check the dates the amounts change in the
A119: Amort Table (col K & M) to make sure the payments change on the correct dates as per the Lease Contract.
A120: c - If 6a and 6b are BOTH correct, skip to Step 8 (Do NOT click the Start Over Macro Button).
A121: d - If 6a or 6b does not appear to be correct:
A122: i - Double-check the Instructions above (Steps 1 - 6), including the check for # of payments in 1i & check for Table payments in 4d.
A123: ii - Double-check cells B2-B8 by reviewing the Lease Contract. These cells automatically filled based on answers in the Data Input
A124: tab. Make any necessary corrections in the Data Input tab (NOT in cells B2-B8) - the corresponding question #s are referenced above.
A125: iii - Double-Check the Payment Schedule and Other Payment Considerations sections. Compare back to the Lease contract to
A126: verify, and correct as necessary.
A127: e - Once corrections have been made, click the Macro button below to Delete the PV & Amortization Tables.
A131: Step 7 - Repeat Steps 3-6 as needed until all checks (1i, 4d, 6a, 6b, and 6di-6diii) are correct.
A133: Step 8 - See Net Present Value calculated in cell B25 for the Lease Liability and the Asset Cost in cell B28.
A134: Also, see Present Value Table in columns E-G,
A135: and Amortization Table in columns J-P.

Sheet Lease 1 - PV Calc
A1: Present Value Calculations tab - Lease 1 (column C) | B1: Contract # | C1: ='Data Input'!C35 -> 0
A2: Periodic Interest Rate (Section VI, #30-31 from Data Input tab) | B2: ='Data Input'!C184 -> 0
A3: Cash Flows at Beginning or End (Section IV, #21) | B3: ='Data Input'!C122 -> 0 | C3: Important:
A4: Number of payments (Section IV, #20) | B4: ='Data Input'!C119 -> 0 | C4: Do not insert/delete/move
A5: Frequency of payments (Section IV, #19) | B5: ='Data Input'!C115 -> 0 | C5: cells B2:B8
A6: Date of first payment (Section IV, #22) | B6: ='Data Input'!C125 -> 00:00:00 | C6: (macros depend on them)
A7: Lease Start Date (Section IV, #14) | B7: ='Data Input'!C102 -> 00:00:00
A8: Lease End Date including Extensions (Section IV, #17) | B8: ='Data Input'!C110 -> 1900-01-30
A10: Fixed Lease Payment Schedule (Section V, #23 & see instructions below): | B10: Amount | C10: # of Payments
A11: Payment Amount #1 & # of Payments at this amount | B11: 0 | C11: 0
A12: Payment Amount #2 & # of Payments at this amount | B12: 0 | C12: 0
A13: Payment Amount #3 & # of Payments at this amount | B13: 0 | C13: 0
A14: Payment Amount #4 & # of Payments at this amount | B14: 0 | C14: 0
A15: Totals from add'l table below (if needed) | B15: =B88 -> 0 | C15: =C88 -> 0
A16: Total Lease Payments (sum of all payment amounts * # of payments) | B16: =(B11*C11)+(B12*C12)+(B13*C13)+(B14*C14)+(B15) -> 0 | C16: =SUM(C11:C15) -> 0
A18: Other Payment Considerations (manually fill blue cells): | C18: Answers per Data Input Tab
A19: Expected Residual Value Guarantee (Section V, #26) | B19: 0 | C19: ='Data Input'!C147 -> 0
A20: Purchase Option (Section III, #9 & Section V, #27) | B20: 0 | C20: ='Data Input'!C151 -> No
A21: Termination Penalty (Section V, #28) | B21: 0 | C21: ='Data Input'!C158 -> 0
A22: Total Other Payment Considerations | B22: =SUM(B19:B21) -> 0
A23: Total Undiscounted Cash Flows (Total Payments + Other Considerations) | B23: =B16+B22 -> 0
C24: Important:
A25: Net Present Value (calculated after Macros below run) | B25: =SUM(G:G) -> 0 | C25: Do not insert/delete/move
C26: NPV must be cell B25
A27: Additions/Subtractions for Lease Asset Cost (Section III, #11-13) | B27: ='Data Input'!C80-'Data Input'!C81+'Data Input'!C82 -> 0 | C27: (macros depend on it)
A28: Lease Asset Cost (calculated after Macros below run) | B28: =B25+B27 -> 0
A30: The Agency is not required to calculate the Present Value and/or enable Macros,
A31: but Steps 1 & 2 of the instructions below are REQUIRED to be completed.
A32: After completing Steps 1 & 2, if desired to calculate the Present Value, complete Steps 3 - 8:
A34: Note 1: First make sure your Excel settings are correct - | B34: See How to Enable Macros tab
A35: Note 2: Please do not Insert, Delete, or Move any cells, columns or rows as this could cause the Macros to fail.
A36: Note 3: The Blue Cells in columns B & C are for manual input, and the Present Value Table will need to be adjusted in column F.
A37: The Orange cells in columns B & C will automatically fill. Also, the Present Value and Amortization Tables will be generated with the
A38: Macro buttons. Please do not make changes to the orange cells or anywhere within the Tables (except column F).
A40: Step 1 - Fill out the "Fixed Lease Payment Schedule" section above (starting on row 10).
A41: a - If payments escalate over time, list the beginning payment amount (col B) & # of payments to be paid at that amount (col C), then
A42: move to line #2 and list the next payment amount & # of payments at that amount, etc.
A43: b - If an extension is deemed Reasonably Certain to be exercised, but the amount is listed as "negotiable", then use the lease
A44: payment amount just prior to the date of extension for those unknown amounts.
A45: c - If a future payment is variable based on an index or interest rate, then calculate those future payments using the current index or rate.
A46: d - If there is an Abated or Free Rent period (skipped payment) indicated in the lease contract, | C46: Desc of Lease Incentives
A47: indicate that with a $0 payment amount (col B) & the number of payments to be skipped (col C). | C47: ='Data Input'!C164 -> 0
A48: Make sure to put these skipped payments in the correct order chronologically. For example, if there
A49: is a Free Rent period for payment 13, then list the first 12 payments on the first line, then
A50: line #2 as $0 (col B) and 1 (col C), then line #3 as the continuing payments after the Free Rent period.
A51: e - If a Bonus payment from the lessor is included in the contract, subtract that amount from the payment closest to the proper
A52: chronological period (as described in d above). This may cause that payment amount to be negative.
A53: f - Use the blue box below to describe how payments change over time. For example - (a) Payment increases 5% every 10 yrs;
A54: (b) Appraisal to be completed every 25 years; or (c) Payment recalculated every 5 yrs based on CPI, etc.
A55: Also describe payment frequency if Less Often than Annually.
A59: g - If payments are Less Often than Annually,indicate this in the Payment Schedule above by listing first payment on the first row (1 in
A60: col C), then the 2nd row should show how many years to be skipped in col C ($0 in col B), then the 3rd row will show the 2nd payment.
A61: Repeat until all payments & all years are represented in the Payment Schdl (total in col C should tie to total yrs of lease term & cell B4).
A62: h - If there are not enough lines in the table above, use the table below to input the additional payment amounts, and the totals from
A63: the additional table will automatically be added to the Payment Schedule above.
A64: i - Verify that the total # of payments in cell B4 is the same as the sum of col C (cell C16).
A66: Additional Lease Payment Lines (if needed) | B66: Amount | C66: # of Payments
A67: Payment Amount #5 & # of Payments at this amount | B67: 0 | C67: 0
A68: Payment Amount #6 & # of Payments at this amount | B68: 0 | C68: 0
A69: Payment Amount #7 & # of Payments at this amount | B69: 0 | C69: 0
A70: Payment Amount #8 & # of Payments at this amount | B70: 0 | C70: 0
A71: Payment Amount #9 & # of Payments at this amount | B71: 0 | C71: 0
A72: Payment Amount #10 & # of Payments at this amount | B72: 0 | C72: 0
A73: Payment Amount #11 & # of Payments at this amount | B73: 0 | C73: 0
A74: Payment Amount #12 & # of Payments at this amount | B74: 0 | C74: 0
A75: Payment Amount #13 & # of Payments at this amount | B75: 0 | C75: 0
A76: Payment Amount #14 & # of Payments at this amount | B76: 0 | C76: 0
A77: Payment Amount #15 & # of Payments at this amount | B77: 0 | C77: 0
A78: Payment Amount #16 & # of Payments at this amount | B78: 0 | C78: 0
A79: Payment Amount #17 & # of Payments at this amount | B79: 0 | C79: 0
A80: Payment Amount #18 & # of Payments at this amount | B80: 0 | C80: 0
A81: Payment Amount #19 & # of Payments at this amount | B81: 0 | C81: 0
A82: Payment Amount #20 & # of Payments at this amount | B82: 0 | C82: 0
A83: Payment Amount #21 & # of Payments at this amount | B83: 0 | C83: 0
A84: Payment Amount #22 & # of Payments at this amount | B84: 0 | C84: 0
A85: Payment Amount #23 & # of Payments at this amount | B85: 0 | C85: 0
A86: Payment Amount #24 & # of Payments at this amount | B86: 0 | C86: 0
A87: Payment Amount #25 & # of Payments at this amount | B87: 0 | C87: 0
A88: Total Add'l Lease Payments (will automatically be added to the Schedule above) | B88: =(B67*C67)+(B68*C68)+(B69*C69)+(B70*C70)+(B71*C71)+(B72*C72)+(B73*C73)+(B74*C74)+(B75*C75)+(B76*C76)+(B77*C77)+(B78*C78)+(B79*C79)+(B80*C80)+(B81*C81)+(B82*C82)+(B83*C83)+(B84*C84)+(B85*C85)+(B86*C86)+(B87*C87) -> 0 | C88: =SUM(C67:C87) -> 0
A91: Step 2 - Fill out the "Other Payment Considerations" section (starting on row 18) ONLY if instructed to do so on the Data Input tab
A92: The Residual Value Guarantee, Purchase Option & Termination Penalty lines should only have amounts listed if they are deemed
A93: Reasonably Certain to be exercised based on decisions by the Agency (responses from the Data Input tab are shown in col C).
A95: Steps 3 - 8 are OPTIONAL (calculation of Present Value and Amortization Tables)
A96: Step 3 - Click the Macro button below to Generate the first 2 columns of the Present Value (PV) Table.
A99: Step 4 - Using the Payment Schedule filled out in Steps 1 & 2, fill in the Payment Amounts into col F of the PV Table.
A100: a - If there are 12 payments for the 1st payment amount, and 6 payments for the 2nd payment amount, list the 1st amount in the
A101: first 12 rows of the Table, then the 2nd amount for the next 6 rows, and do the same for the remaining payment amounts listed
A102: in the Payment Schedule until all the payments are filled in on the Table.
A103: b - Make sure not to skip any Free Rent periods. If the Payment Schedule indicates the 13th payment is $0, then row 13 of the
A104: Table should be $0, same as the Payment Schedule.
A105: c - If there are any amounts listed for "Other Payment Considerations", add it to the final payment. For example, if the final
A106: payment is $20,000, and there is a Purchase Option listed for $500,000, then the final payment in the Table should be $520,000.
A107: d - Check to make sure that the sum of all the payments entered into col F of the Table is the same as the Total Undiscounted Cash
A108: Flows in cell B23.
A110: Step 5 - Click the Macro button below to Calculate Net Present Value and Generate the PV and Amortization Tables.
A114: Step 6 - Check data for accuracy:
A115: a - Check the date of the final payment in the Amortization Table and compare to Lease End Date in cell B8. Make sure the final
A116: payment date is reasonable in comparison to the Lease End Date (within same month if payments are Monthly, within the final
A117: quarter if Quarterly, etc).
A118: b - If payments change (there are amounts in Payment Amount #2 + rows), then check the dates the amounts change in the
A119: Amort Table (col K & M) to make sure the payments change on the correct dates as per the Lease Contract.
A120: c - If 6a and 6b are BOTH correct, skip to Step 8 (Do NOT click the Start Over Macro Button).
A121: d - If 6a or 6b does not appear to be correct:
A122: i - Double-check the Instructions above (Steps 1 - 6), including the check for # of payments in 1i & check for Table payments in 4d.
A123: ii - Double-check cells B2-B8 by reviewing the Lease Contract. These cells automatically filled based on answers in the Data Input
A124: tab. Make any necessary corrections in the Data Input tab (NOT in cells B2-B8) - the corresponding question #s are referenced above.
A125: iii - Double-Check the Payment Schedule and Other Payment Considerations sections. Compare back to the Lease contract to
A126: verify, and correct as necessary.
A127: e - Once corrections have been made, click the Macro button below to Delete the PV & Amortization Tables.
A131: Step 7 - Repeat Steps 3-6 as needed until all checks (1i, 4d, 6a, 6b, and 6di-6diii) are correct.
A133: Step 8 - See Net Present Value calculated in cell B25 for the Lease Liability and the Asset Cost in cell B28.
A134: Also, see Present Value Table in columns E-G,
A135: and Amortization Table in columns J-P.

Sheet Lease 2 - PV Calc
A1: Present Value Calculations tab - Lease 2 (column D) | B1: Contract # | C1: ='Data Input'!D35 -> 0
A2: Periodic Interest Rate (Section VI, #30-31 from Data Input tab) | B2: ='Data Input'!D184 -> 0
A3: Cash Flows at Beginning or End (Section IV, #21) | B3: ='Data Input'!D122 -> 0 | C3: Important:
A4: Number of payments (Section IV, #20) | B4: ='Data Input'!D119 -> 0 | C4: Do not insert/delete/move
A5: Frequency of payments (Section IV, #19) | B5: ='Data Input'!D115 -> 0 | C5: cells B2:B8
A6: Date of first payment (Section IV, #22) | B6: ='Data Input'!D125 -> 00:00:00 | C6: (macros depend on them)
A7: Lease Start Date (Section IV, #14) | B7: ='Data Input'!D102 -> 00:00:00
A8: Lease End Date including Extensions (Section IV, #17) | B8: ='Data Input'!D110 -> 1900-01-30
A10: Fixed Lease Payment Schedule (Section V, #23 & see instructions below): | B10: Amount | C10: # of Payments
A11: Payment Amount #1 & # of Payments at this amount | B11: 0 | C11: 0
A12: Payment Amount #2 & # of Payments at this amount | B12: 0 | C12: 0
A13: Payment Amount #3 & # of Payments at this amount | B13: 0 | C13: 0
A14: Payment Amount #4 & # of Payments at this amount | B14: 0 | C14: 0
A15: Totals from add'l table below (if needed) | B15: =B88 -> 0 | C15: =C88 -> 0
A16: Total Lease Payments (sum of all payment amounts * # of payments) | B16: =(B11*C11)+(B12*C12)+(B13*C13)+(B14*C14)+(B15) -> 0 | C16: =SUM(C11:C15) -> 0
A18: Other Payment Considerations (manually fill blue cells): | C18: Answers per Data Input Tab
A19: Expected Residual Value Guarantee (Section V, #26) | B19: 0 | C19: ='Data Input'!D147 -> 0
A20: Purchase Option (Section III, #9 & Section V, #27) | B20: 0 | C20: ='Data Input'!D151 -> No
A21: Termination Penalty (Section V, #28) | B21: 0 | C21: ='Data Input'!D158 -> 0
A22: Total Other Payment Considerations | B22: =SUM(B19:B21) -> 0
A23: Total Undiscounted Cash Flows (Total Payments + Other Considerations) | B23: =B16+B22 -> 0
C24: Important:
A25: Net Present Value (calculated after Macros below run) | B25: =SUM(G:G) -> 0 | C25: Do not insert/delete/move
C26: NPV must be cell B25
A27: Additions/Subtractions for Lease Asset Cost (Section III, #11-13) | B27: ='Data Input'!D80-'Data Input'!D81+'Data Input'!D82 -> 0 | C27: (macros depend on it)
A28: Lease Asset Cost (calculated after Macros below run) | B28: =B25+B27 -> 0
A30: The Agency is not required to calculate the Present Value and/or enable Macros,
A31: but Steps 1 & 2 of the instructions below are REQUIRED to be completed.
A32: After completing Steps 1 & 2, if desired to calculate the Present Value, complete Steps 3 - 8:
A34: Note 1: First make sure your Excel settings are correct - | B34: See How to Enable Macros tab
A35: Note 2: Please do not Insert, Delete, or Move any cells, columns or rows as this could cause the Macros to fail.
A36: Note 3: The Blue Cells in columns B & C are for manual input, and the Present Value Table will need to be adjusted in column F.
A37: The Orange cells in columns B & C will automatically fill. Also, the Present Value and Amortization Tables will be generated with the
A38: Macro buttons. Please do not make changes to the orange cells or anywhere within the Tables (except column F).
A40: Step 1 - Fill out the "Fixed Lease Payment Schedule" section above (starting on row 10).
A41: a - If payments escalate over time, list the beginning payment amount (col B) & # of payments to be paid at that amount (col C), then
A42: move to line #2 and list the next payment amount & # of payments at that amount, etc.
A43: b - If an extension is deemed Reasonably Certain to be exercised, but the amount is listed as "negotiable", then use the lease
A44: payment amount just prior to the date of extension for those unknown amounts.
A45: c - If a future payment is variable based on an index or interest rate, then calculate those future payments using the current index or rate.
A46: d - If there is an Abated or Free Rent period (skipped payment) indicated in the lease contract, | C46: Desc of Lease Incentives
A47: indicate that with a $0 payment amount (col B) & the number of payments to be skipped (col C). | C47: ='Data Input'!D164 -> 0
A48: Make sure to put these skipped payments in the correct order chronologically. For example, if there
A49: is a Free Rent period for payment 13, then list the first 12 payments on the first line, then
A50: line #2 as $0 (col B) and 1 (col C), then line #3 as the continuing payments after the Free Rent period.
A51: e - If a Bonus payment from the lessor is included in the contract, subtract that amount from the payment closest to the proper
A52: chronological period (as described in d above). This may cause that payment amount to be negative.
A53: f - Use the blue box below to describe how payments change over time. For example - (a) Payment increases 5% every 10 yrs;
A54: (b) Appraisal to be completed every 25 years; or (c) Payment recalculated every 5 yrs based on CPI, etc.
A55: Also describe payment frequency if Less Often than Annually.
A59: g - If payments are Less Often than Annually,indicate this in the Payment Schedule above by listing first payment on the first row (1 in
A60: col C), then the 2nd row should show how many years to be skipped in col C ($0 in col B), then the 3rd row will show the 2nd payment.
A61: Repeat until all payments & all years are represented in the Payment Schdl (total in col C should tie to total yrs of lease term & cell B4).
A62: h - If there are not enough lines in the table above, use the table below to input the additional payment amounts, and the totals from
A63: the additional table will automatically be added to the Payment Schedule above.
A64: i - Verify that the total # of payments in cell B4 is the same as the sum of col C (cell C16).
A66: Additional Lease Payment Lines (if needed) | B66: Amount | C66: # of Payments
A67: Payment Amount #5 & # of Payments at this amount | B67: 0 | C67: 0
A68: Payment Amount #6 & # of Payments at this amount | B68: 0 | C68: 0
A69: Payment Amount #7 & # of Payments at this amount | B69: 0 | C69: 0
A70: Payment Amount #8 & # of Payments at this amount | B70: 0 | C70: 0
A71: Payment Amount #9 & # of Payments at this amount | B71: 0 | C71: 0
A72: Payment Amount #10 & # of Payments at this amount | B72: 0 | C72: 0
A73: Payment Amount #11 & # of Payments at this amount | B73: 0 | C73: 0
A74: Payment Amount #12 & # of Payments at this amount | B74: 0 | C74: 0
A75: Payment Amount #13 & # of Payments at this amount | B75: 0 | C75: 0
A76: Payment Amount #14 & # of Payments at this amount | B76: 0 | C76: 0
A77: Payment Amount #15 & # of Payments at this amount | B77: 0 | C77: 0
A78: Payment Amount #16 & # of Payments at this amount | B78: 0 | C78: 0
A79: Payment Amount #17 & # of Payments at this amount | B79: 0 | C79: 0
A80: Payment Amount #18 & # of Payments at this amount | B80: 0 | C80: 0
A81: Payment Amount #19 & # of Payments at this amount | B81: 0 | C81: 0
A82: Payment Amount #20 & # of Payments at this amount | B82: 0 | C82: 0
A83: Payment Amount #21 & # of Payments at this amount | B83: 0 | C83: 0
A84: Payment Amount #22 & # of Payments at this amount | B84: 0 | C84: 0
A85: Payment Amount #23 & # of Payments at this amount | B85: 0 | C85: 0
A86: Payment Amount #24 & # of Payments at this amount | B86: 0 | C86: 0
A87: Payment Amount #25 & # of Payments at this amount | B87: 0 | C87: 0
A88: Total Add'l Lease Payments (will automatically be added to the Schedule above) | B88: =(B67*C67)+(B68*C68)+(B69*C69)+(B70*C70)+(B71*C71)+(B72*C72)+(B73*C73)+(B74*C74)+(B75*C75)+(B76*C76)+(B77*C77)+(B78*C78)+(B79*C79)+(B80*C80)+(B81*C81)+(B82*C82)+(B83*C83)+(B84*C84)+(B85*C85)+(B86*C86)+(B87*C87) -> 0 | C88: =SUM(C67:C87) -> 0
A91: Step 2 - Fill out the "Other Payment Considerations" section (starting on row 18) ONLY if instructed to do so on the Data Input tab
A92: The Residual Value Guarantee, Purchase Option & Termination Penalty lines should only have amounts listed if they are deemed
A93: Reasonably Certain to be exercised based on decisions by the Agency (responses from the Data Input tab are shown in col C).
A95: Steps 3 - 8 are OPTIONAL (calculation of Present Value and Amortization Tables)
A96: Step 3 - Click the Macro button below to Generate the first 2 columns of the Present Value (PV) Table.
A99: Step 4 - Using the Payment Schedule filled out in Steps 1 & 2, fill in the Payment Amounts into col F of the PV Table.
A100: a - If there are 12 payments for the 1st payment amount, and 6 payments for the 2nd payment amount, list the 1st amount in the
A101: first 12 rows of the Table, then the 2nd amount for the next 6 rows, and do the same for the remaining payment amounts listed
A102: in the Payment Schedule until all the payments are filled in on the Table.
A103: b - Make sure not to skip any Free Rent periods. If the Payment Schedule indicates the 13th payment is $0, then row 13 of the
A104: Table should be $0, same as the Payment Schedule.
A105: c - If there are any amounts listed for "Other Payment Considerations", add it to the final payment. For example, if the final
A106: payment is $20,000, and there is a Purchase Option listed for $500,000, then the final payment in the Table should be $520,000.
A107: d - Check to make sure that the sum of all the payments entered into col F of the Table is the same as the Total Undiscounted Cash
A108: Flows in cell B23.
A110: Step 5 - Click the Macro button below to Calculate Net Present Value and Generate the PV and Amortization Tables.
A114: Step 6 - Check data for accuracy:
A115: a - Check the date of the final payment in the Amortization Table and compare to Lease End Date in cell B8. Make sure the final
A116: payment date is reasonable in comparison to the Lease End Date (within same month if payments are Monthly, within the final
A117: quarter if Quarterly, etc).
A118: b - If payments change (there are amounts in Payment Amount #2 + rows), then check the dates the amounts change in the
A119: Amort Table (col K & M) to make sure the payments change on the correct dates as per the Lease Contract.
A120: c - If 6a and 6b are BOTH correct, skip to Step 8 (Do NOT click the Start Over Macro Button).
A121: d - If 6a or 6b does not appear to be correct:
A122: i - Double-check the Instructions above (Steps 1 - 6), including the check for # of payments in 1i & check for Table payments in 4d.
A123: ii - Double-check cells B2-B8 by reviewing the Lease Contract. These cells automatically filled based on answers in the Data Input
A124: tab. Make any necessary corrections in the Data Input tab (NOT in cells B2-B8) - the corresponding question #s are referenced above.
A125: iii - Double-Check the Payment Schedule and Other Payment Considerations sections. Compare back to the Lease contract to
A126: verify, and correct as necessary.
A127: e - Once corrections have been made, click the Macro button below to Delete the PV & Amortization Tables.
A131: Step 7 - Repeat Steps 3-6 as needed until all checks (1i, 4d, 6a, 6b, and 6di-6diii) are correct.
A133: Step 8 - See Net Present Value calculated in cell B25 for the Lease Liability and the Asset Cost in cell B28.
A134: Also, see Present Value Table in columns E-G,
A135: and Amortization Table in columns J-P.

Sheet Lease 3 - PV Calc
A1: Present Value Calculations tab - Lease 3 (column E) | B1: Contract # | C1: ='Data Input'!E35 -> 0
A2: Periodic Interest Rate (Section VI, #30-31 from Data Input tab) | B2: ='Data Input'!E184 -> 0
A3: Cash Flows at Beginning or End (Section IV, #21) | B3: ='Data Input'!E122 -> 0 | C3: Important:
A4: Number of payments (Section IV, #20) | B4: ='Data Input'!E119 -> 0 | C4: Do not insert/delete/move
A5: Frequency of payments (Section IV, #19) | B5: ='Data Input'!E115 -> 0 | C5: cells B2:B8
A6: Date of first payment (Section IV, #22) | B6: ='Data Input'!E125 -> 00:00:00 | C6: (macros depend on them)
A7: Lease Start Date (Section IV, #14) | B7: ='Data Input'!E102 -> 00:00:00
A8: Lease End Date including Extensions (Section IV, #17) | B8: ='Data Input'!E110 -> 1900-01-30
A10: Fixed Lease Payment Schedule (Section V, #23 & see instructions below): | B10: Amount | C10: # of Payments
A11: Payment Amount #1 & # of Payments at this amount | B11: 0 | C11: 0
A12: Payment Amount #2 & # of Payments at this amount | B12: 0 | C12: 0
A13: Payment Amount #3 & # of Payments at this amount | B13: 0 | C13: 0
A14: Payment Amount #4 & # of Payments at this amount | B14: 0 | C14: 0
A15: Totals from add'l table below (if needed) | B15: =B88 -> 0 | C15: =C88 -> 0
A16: Total Lease Payments (sum of all payment amounts * # of payments) | B16: =(B11*C11)+(B12*C12)+(B13*C13)+(B14*C14)+(B15) -> 0 | C16: =SUM(C11:C15) -> 0
A18: Other Payment Considerations (manually fill blue cells): | C18: Answers per Data Input Tab
A19: Expected Residual Value Guarantee (Section V, #26) | B19: 0 | C19: ='Data Input'!E147 -> 0
A20: Purchase Option (Section III, #9 & Section V, #27) | B20: 0 | C20: ='Data Input'!E151 -> No
A21: Termination Penalty (Section V, #28) | B21: 0 | C21: ='Data Input'!E158 -> 0
A22: Total Other Payment Considerations | B22: =SUM(B19:B21) -> 0
A23: Total Undiscounted Cash Flows (Total Payments + Other Considerations) | B23: =B16+B22 -> 0
C24: Important:
A25: Net Present Value (calculated after Macros below run) | B25: =SUM(G:G) -> 0 | C25: Do not insert/delete/move
C26: NPV must be cell B25
A27: Additions/Subtractions for Lease Asset Cost (Section III, #11-13) | B27: ='Data Input'!E80-'Data Input'!E81+'Data Input'!E82 -> 0 | C27: (macros depend on it)
A28: Lease Asset Cost (calculated after Macros below run) | B28: =B25+B27 -> 0
A30: The Agency is not required to calculate the Present Value and/or enable Macros,
A31: but Steps 1 & 2 of the instructions below are REQUIRED to be completed.
A32: After completing Steps 1 & 2, if desired to calculate the Present Value, complete Steps 3 - 8:
A34: Note 1: First make sure your Excel settings are correct - | B34: See How to Enable Macros tab
A35: Note 2: Please do not Insert, Delete, or Move any cells, columns or rows as this could cause the Macros to fail.
A36: Note 3: The Blue Cells in columns B & C are for manual input, and the Present Value Table will need to be adjusted in column F.
A37: The Orange cells in columns B & C will automatically fill. Also, the Present Value and Amortization Tables will be generated with the
A38: Macro buttons. Please do not make changes to the orange cells or anywhere within the Tables (except column F).
A40: Step 1 - Fill out the "Fixed Lease Payment Schedule" section above (starting on row 10).
A41: a - If payments escalate over time, list the beginning payment amount (col B) & # of payments to be paid at that amount (col C), then
A42: move to line #2 and list the next payment amount & # of payments at that amount, etc.
A43: b - If an extension is deemed Reasonably Certain to be exercised, but the amount is listed as "negotiable", then use the lease
A44: payment amount just prior to the date of extension for those unknown amounts.
A45: c - If a future payment is variable based on an index or interest rate, then calculate those future payments using the current index or rate.
A46: d - If there is an Abated or Free Rent period (skipped payment) indicated in the lease contract, | C46: Desc of Lease Incentives
A47: indicate that with a $0 payment amount (col B) & the number of payments to be skipped (col C). | C47: ='Data Input'!E164 -> 0
A48: Make sure to put these skipped payments in the correct order chronologically. For example, if there
A49: is a Free Rent period for payment 13, then list the first 12 payments on the first line, then
A50: line #2 as $0 (col B) and 1 (col C), then line #3 as the continuing payments after the Free Rent period.
A51: e - If a Bonus payment from the lessor is included in the contract, subtract that amount from the payment closest to the proper
A52: chronological period (as described in d above). This may cause that payment amount to be negative.
A53: f - Use the blue box below to describe how payments change over time. For example - (a) Payment increases 5% every 10 yrs;
A54: (b) Appraisal to be completed every 25 years; or (c) Payment recalculated every 5 yrs based on CPI, etc.
A55: Also describe payment frequency if Less Often than Annually.
A59: g - If payments are Less Often than Annually,indicate this in the Payment Schedule above by listing first payment on the first row (1 in
A60: col C), then the 2nd row should show how many years to be skipped in col C ($0 in col B), then the 3rd row will show the 2nd payment.
A61: Repeat until all payments & all years are represented in the Payment Schdl (total in col C should tie to total yrs of lease term & cell B4).
A62: h - If there are not enough lines in the table above, use the table below to input the additional payment amounts, and the totals from
A63: the additional table will automatically be added to the Payment Schedule above.
A64: i - Verify that the total # of payments in cell B4 is the same as the sum of col C (cell C16).
A66: Additional Lease Payment Lines (if needed) | B66: Amount | C66: # of Payments
A67: Payment Amount #5 & # of Payments at this amount | B67: 0 | C67: 0
A68: Payment Amount #6 & # of Payments at this amount | B68: 0 | C68: 0
A69: Payment Amount #7 & # of Payments at this amount | B69: 0 | C69: 0
A70: Payment Amount #8 & # of Payments at this amount | B70: 0 | C70: 0
A71: Payment Amount #9 & # of Payments at this amount | B71: 0 | C71: 0
A72: Payment Amount #10 & # of Payments at this amount | B72: 0 | C72: 0
A73: Payment Amount #11 & # of Payments at this amount | B73: 0 | C73: 0
A74: Payment Amount #12 & # of Payments at this amount | B74: 0 | C74: 0
A75: Payment Amount #13 & # of Payments at this amount | B75: 0 | C75: 0
A76: Payment Amount #14 & # of Payments at this amount | B76: 0 | C76: 0
A77: Payment Amount #15 & # of Payments at this amount | B77: 0 | C77: 0
A78: Payment Amount #16 & # of Payments at this amount | B78: 0 | C78: 0
A79: Payment Amount #17 & # of Payments at this amount | B79: 0 | C79: 0
A80: Payment Amount #18 & # of Payments at this amount | B80: 0 | C80: 0
A81: Payment Amount #19 & # of Payments at this amount | B81: 0 | C81: 0
A82: Payment Amount #20 & # of Payments at this amount | B82: 0 | C82: 0
A83: Payment Amount #21 & # of Payments at this amount | B83: 0 | C83: 0
A84: Payment Amount #22 & # of Payments at this amount | B84: 0 | C84: 0
A85: Payment Amount #23 & # of Payments at this amount | B85: 0 | C85: 0
A86: Payment Amount #24 & # of Payments at this amount | B86: 0 | C86: 0
A87: Payment Amount #25 & # of Payments at this amount | B87: 0 | C87: 0
A88: Total Add'l Lease Payments (will automatically be added to the Schedule above) | B88: =(B67*C67)+(B68*C68)+(B69*C69)+(B70*C70)+(B71*C71)+(B72*C72)+(B73*C73)+(B74*C74)+(B75*C75)+(B76*C76)+(B77*C77)+(B78*C78)+(B79*C79)+(B80*C80)+(B81*C81)+(B82*C82)+(B83*C83)+(B84*C84)+(B85*C85)+(B86*C86)+(B87*C87) -> 0 | C88: =SUM(C67:C87) -> 0
A91: Step 2 - Fill out the "Other Payment Considerations" section (starting on row 18) ONLY if instructed to do so on the Data Input tab
A92: The Residual Value Guarantee, Purchase Option & Termination Penalty lines should only have amounts listed if they are deemed
A93: Reasonably Certain to be exercised based on decisions by the Agency (responses from the Data Input tab are shown in col C).
A95: Steps 3 - 8 are OPTIONAL (calculation of Present Value and Amortization Tables)
A96: Step 3 - Click the Macro button below to Generate the first 2 columns of the Present Value (PV) Table.
A99: Step 4 - Using the Payment Schedule filled out in Steps 1 & 2, fill in the Payment Amounts into col F of the PV Table.
A100: a - If there are 12 payments for the 1st payment amount, and 6 payments for the 2nd payment amount, list the 1st amount in the
A101: first 12 rows of the Table, then the 2nd amount for the next 6 rows, and do the same for the remaining payment amounts listed
A102: in the Payment Schedule until all the payments are filled in on the Table.
A103: b - Make sure not to skip any Free Rent periods. If the Payment Schedule indicates the 13th payment is $0, then row 13 of the
A104: Table should be $0, same as the Payment Schedule.
A105: c - If there are any amounts listed for "Other Payment Considerations", add it to the final payment. For example, if the final
A106: payment is $20,000, and there is a Purchase Option listed for $500,000, then the final payment in the Table should be $520,000.
A107: d - Check to make sure that the sum of all the payments entered into col F of the Table is the same as the Total Undiscounted Cash
A108: Flows in cell B23.
A110: Step 5 - Click the Macro button below to Calculate Net Present Value and Generate the PV and Amortization Tables.
A114: Step 6 - Check data for accuracy:
A115: a - Check the date of the final payment in the Amortization Table and compare to Lease End Date in cell B8. Make sure the final
A116: payment date is reasonable in comparison to the Lease End Date (within same month if payments are Monthly, within the final
A117: quarter if Quarterly, etc).
A118: b - If payments change (there are amounts in Payment Amount #2 + rows), then check the dates the amounts change in the
A119: Amort Table (col K & M) to make sure the payments change on the correct dates as per the Lease Contract.
A120: c - If 6a and 6b are BOTH correct, skip to Step 8 (Do NOT click the Start Over Macro Button).
A121: d - If 6a or 6b does not appear to be correct:
A122: i - Double-check the Instructions above (Steps 1 - 6), including the check for # of payments in 1i & check for Table payments in 4d.
A123: ii - Double-check cells B2-B8 by reviewing the Lease Contract. These cells automatically filled based on answers in the Data Input
A124: tab. Make any necessary corrections in the Data Input tab (NOT in cells B2-B8) - the corresponding question #s are referenced above.
A125: iii - Double-Check the Payment Schedule and Other Payment Considerations sections. Compare back to the Lease contract to
A126: verify, and correct as necessary.
A127: e - Once corrections have been made, click the Macro button below to Delete the PV & Amortization Tables.
A131: Step 7 - Repeat Steps 3-6 as needed until all checks (1i, 4d, 6a, 6b, and 6di-6diii) are correct.
A133: Step 8 - See Net Present Value calculated in cell B25 for the Lease Liability and the Asset Cost in cell B28.
A134: Also, see Present Value Table in columns E-G,
A135: and Amortization Table in columns J-P.

Sheet Lease 4 - PV Calc
A1: Present Value Calculations tab - Lease 4 (column F) | B1: Contract # | C1: ='Data Input'!F35 -> 0
A2: Periodic Interest Rate (Section VI, #30-31 from Data Input tab) | B2: ='Data Input'!F184 -> 0
A3: Cash Flows at Beginning or End (Section IV, #21) | B3: ='Data Input'!F122 -> 0 | C3: Important:
A4: Number of payments (Section IV, #20) | B4: ='Data Input'!F119 -> 0 | C4: Do not insert/delete/move
A5: Frequency of payments (Section IV, #19) | B5: ='Data Input'!F115 -> 0 | C5: cells B2:B8
A6: Date of first payment (Section IV, #22) | B6: ='Data Input'!F125 -> 00:00:00 | C6: (macros depend on them)
A7: Lease Start Date (Section IV, #14) | B7: ='Data Input'!F102 -> 00:00:00
A8: Lease End Date including Extensions (Section IV, #17) | B8: ='Data Input'!F110 -> 1900-01-30
A10: Fixed Lease Payment Schedule (Section V, #23 & see instructions below): | B10: Amount | C10: # of Payments
A11: Payment Amount #1 & # of Payments at this amount | B11: 0 | C11: 0
A12: Payment Amount #2 & # of Payments at this amount | B12: 0 | C12: 0
A13: Payment Amount #3 & # of Payments at this amount | B13: 0 | C13: 0
A14: Payment Amount #4 & # of Payments at this amount | B14: 0 | C14: 0
A15: Totals from add'l table below (if needed) | B15: =B88 -> 0 | C15: =C88 -> 0
A16: Total Lease Payments (sum of all payment amounts * # of payments) | B16: =(B11*C11)+(B12*C12)+(B13*C13)+(B14*C14)+(B15) -> 0 | C16: =SUM(C11:C15) -> 0
A18: Other Payment Considerations (manually fill blue cells): | C18: Answers per Data Input Tab
A19: Expected Residual Value Guarantee (Section V, #26) | B19: 0 | C19: ='Data Input'!F147 -> 0
A20: Purchase Option (Section III, #9 & Section V, #27) | B20: 0 | C20: ='Data Input'!F151 -> No
A21: Termination Penalty (Section V, #28) | B21: 0 | C21: ='Data Input'!F158 -> 0
A22: Total Other Payment Considerations | B22: =SUM(B19:B21) -> 0
A23: Total Undiscounted Cash Flows (Total Payments + Other Considerations) | B23: =B16+B22 -> 0
C24: Important:
A25: Net Present Value (calculated after Macros below run) | B25: =SUM(G:G) -> 0 | C25: Do not insert/delete/move
C26: NPV must be cell B25
A27: Additions/Subtractions for Lease Asset Cost (Section III, #11-13) | B27: ='Data Input'!F80-'Data Input'!F81+'Data Input'!F82 -> 0 | C27: (macros depend on it)
A28: Lease Asset Cost (calculated after Macros below run) | B28: =B25+B27 -> 0
A30: The Agency is not required to calculate the Present Value and/or enable Macros,
A31: but Steps 1 & 2 of the instructions below are REQUIRED to be completed.
A32: After completing Steps 1 & 2, if desired to calculate the Present Value, complete Steps 3 - 8:
A34: Note 1: First make sure your Excel settings are correct - | B34: See How to Enable Macros tab
A35: Note 2: Please do not Insert, Delete, or Move any cells, columns or rows as this could cause the Macros to fail.
A36: Note 3: The Blue Cells in columns B & C are for manual input, and the Present Value Table will need to be adjusted in column F.
A37: The Orange cells in columns B & C will automatically fill. Also, the Present Value and Amortization Tables will be generated with the
A38: Macro buttons. Please do not make changes to the orange cells or anywhere within the Tables (except column F).
A40: Step 1 - Fill out the "Fixed Lease Payment Schedule" section above (starting on row 10).
A41: a - If payments escalate over time, list the beginning payment amount (col B) & # of payments to be paid at that amount (col C), then
A42: move to line #2 and list the next payment amount & # of payments at that amount, etc.
A43: b - If an extension is deemed Reasonably Certain to be exercised, but the amount is listed as "negotiable", then use the lease
A44: payment amount just prior to the date of extension for those unknown amounts.
A45: c - If a future payment is variable based on an index or interest rate, then calculate those future payments using the current index or rate.
A46: d - If there is an Abated or Free Rent period (skipped payment) indicated in the lease contract, | C46: Desc of Lease Incentives
A47: indicate that with a $0 payment amount (col B) & the number of payments to be skipped (col C). | C47: ='Data Input'!F164 -> 0
A48: Make sure to put these skipped payments in the correct order chronologically. For example, if there
A49: is a Free Rent period for payment 13, then list the first 12 payments on the first line, then
A50: line #2 as $0 (col B) and 1 (col C), then line #3 as the continuing payments after the Free Rent period.
A51: e - If a Bonus payment from the lessor is included in the contract, subtract that amount from the payment closest to the proper
A52: chronological period (as described in d above). This may cause that payment amount to be negative.
A53: f - Use the blue box below to describe how payments change over time. For example - (a) Payment increases 5% every 10 yrs;
A54: (b) Appraisal to be completed every 25 years; or (c) Payment recalculated every 5 yrs based on CPI, etc.
A55: Also describe payment frequency if Less Often than Annually.
A59: g - If payments are Less Often than Annually,indicate this in the Payment Schedule above by listing first payment on the first row (1 in
A60: col C), then the 2nd row should show how many years to be skipped in col C ($0 in col B), then the 3rd row will show the 2nd payment.
A61: Repeat until all payments & all years are represented in the Payment Schdl (total in col C should tie to total yrs of lease term & cell B4).
A62: h - If there are not enough lines in the table above, use the table below to input the additional payment amounts, and the totals from
A63: the additional table will automatically be added to the Payment Schedule above.
A64: i - Verify that the total # of payments in cell B4 is the same as the sum of col C (cell C16).
A66: Additional Lease Payment Lines (if needed) | B66: Amount | C66: # of Payments
A67: Payment Amount #5 & # of Payments at this amount | B67: 0 | C67: 0
A68: Payment Amount #6 & # of Payments at this amount | B68: 0 | C68: 0
A69: Payment Amount #7 & # of Payments at this amount | B69: 0 | C69: 0
A70: Payment Amount #8 & # of Payments at this amount | B70: 0 | C70: 0
A71: Payment Amount #9 & # of Payments at this amount | B71: 0 | C71: 0
A72: Payment Amount #10 & # of Payments at this amount | B72: 0 | C72: 0
A73: Payment Amount #11 & # of Payments at this amount | B73: 0 | C73: 0
A74: Payment Amount #12 & # of Payments at this amount | B74: 0 | C74: 0
A75: Payment Amount #13 & # of Payments at this amount | B75: 0 | C75: 0
A76: Payment Amount #14 & # of Payments at this amount | B76: 0 | C76: 0
A77: Payment Amount #15 & # of Payments at this amount | B77: 0 | C77: 0
A78: Payment Amount #16 & # of Payments at this amount | B78: 0 | C78: 0
A79: Payment Amount #17 & # of Payments at this amount | B79: 0 | C79: 0
A80: Payment Amount #18 & # of Payments at this amount | B80: 0 | C80: 0
A81: Payment Amount #19 & # of Payments at this amount | B81: 0 | C81: 0
A82: Payment Amount #20 & # of Payments at this amount | B82: 0 | C82: 0
A83: Payment Amount #21 & # of Payments at this amount | B83: 0 | C83: 0
A84: Payment Amount #22 & # of Payments at this amount | B84: 0 | C84: 0
A85: Payment Amount #23 & # of Payments at this amount | B85: 0 | C85: 0
A86: Payment Amount #24 & # of Payments at this amount | B86: 0 | C86: 0
A87: Payment Amount #25 & # of Payments at this amount | B87: 0 | C87: 0
A88: Total Add'l Lease Payments (will automatically be added to the Schedule above) | B88: =(B67*C67)+(B68*C68)+(B69*C69)+(B70*C70)+(B71*C71)+(B72*C72)+(B73*C73)+(B74*C74)+(B75*C75)+(B76*C76)+(B77*C77)+(B78*C78)+(B79*C79)+(B80*C80)+(B81*C81)+(B82*C82)+(B83*C83)+(B84*C84)+(B85*C85)+(B86*C86)+(B87*C87) -> 0 | C88: =SUM(C67:C87) -> 0
A91: Step 2 - Fill out the "Other Payment Considerations" section (starting on row 18) ONLY if instructed to do so on the Data Input tab
A92: The Residual Value Guarantee, Purchase Option & Termination Penalty lines should only have amounts listed if they are deemed
A93: Reasonably Certain to be exercised based on decisions by the Agency (responses from the Data Input tab are shown in col C).
A95: Steps 3 - 8 are OPTIONAL (calculation of Present Value and Amortization Tables)
A96: Step 3 - Click the Macro button below to Generate the first 2 columns of the Present Value (PV) Table.
A99: Step 4 - Using the Payment Schedule filled out in Steps 1 & 2, fill in the Payment Amounts into col F of the PV Table.
A100: a - If there are 12 payments for the 1st payment amount, and 6 payments for the 2nd payment amount, list the 1st amount in the
A101: first 12 rows of the Table, then the 2nd amount for the next 6 rows, and do the same for the remaining payment amounts listed
A102: in the Payment Schedule until all the payments are filled in on the Table.
A103: b - Make sure not to skip any Free Rent periods. If the Payment Schedule indicates the 13th payment is $0, then row 13 of the
A104: Table should be $0, same as the Payment Schedule.
A105: c - If there are any amounts listed for "Other Payment Considerations", add it to the final payment. For example, if the final
A106: payment is $20,000, and there is a Purchase Option listed for $500,000, then the final payment in the Table should be $520,000.
A107: d - Check to make sure that the sum of all the payments entered into col F of the Table is the same as the Total Undiscounted Cash
A108: Flows in cell B23.
A110: Step 5 - Click the Macro button below to Calculate Net Present Value and Generate the PV and Amortization Tables.
A114: Step 6 - Check data for accuracy:
A115: a - Check the date of the final payment in the Amortization Table and compare to Lease End Date in cell B8. Make sure the final
A116: payment date is reasonable in comparison to the Lease End Date (within same month if payments are Monthly, within the final
A117: quarter if Quarterly, etc).
A118: b - If payments change (there are amounts in Payment Amount #2 + rows), then check the dates the amounts change in the
A119: Amort Table (col K & M) to make sure the payments change on the correct dates as per the Lease Contract.
A120: c - If 6a and 6b are BOTH correct, skip to Step 8 (Do NOT click the Start Over Macro Button).
A121: d - If 6a or 6b does not appear to be correct:
A122: i - Double-check the Instructions above (Steps 1 - 6), including the check for # of payments in 1i & check for Table payments in 4d.
A123: ii - Double-check cells B2-B8 by reviewing the Lease Contract. These cells automatically filled based on answers in the Data Input
A124: tab. Make any necessary corrections in the Data Input tab (NOT in cells B2-B8) - the corresponding question #s are referenced above.
A125: iii - Double-Check the Payment Schedule and Other Payment Considerations sections. Compare back to the Lease contract to
A126: verify, and correct as necessary.
A127: e - Once corrections have been made, click the Macro button below to Delete the PV & Amortization Tables.
A131: Step 7 - Repeat Steps 3-6 as needed until all checks (1i, 4d, 6a, 6b, and 6di-6diii) are correct.
A133: Step 8 - See Net Present Value calculated in cell B25 for the Lease Liability and the Asset Cost in cell B28.
A134: Also, see Present Value Table in columns E-G,
A135: and Amortization Table in columns J-P.

Sheet Lease 5 - PV Calc
A1: Present Value Calculations tab - Lease 5 (column G) | B1: Contract # | C1: ='Data Input'!G35 -> 0
A2: Periodic Interest Rate (Section VI, #30-31 from Data Input tab) | B2: ='Data Input'!G184 -> 0
A3: Cash Flows at Beginning or End (Section IV, #21) | B3: ='Data Input'!G122 -> 0 | C3: Important:
A4: Number of payments (Section IV, #20) | B4: ='Data Input'!G119 -> 0 | C4: Do not insert/delete/move
A5: Frequency of payments (Section IV, #19) | B5: ='Data Input'!G115 -> 0 | C5: cells B2:B8
A6: Date of first payment (Section IV, #22) | B6: ='Data Input'!G125 -> 00:00:00 | C6: (macros depend on them)
A7: Lease Start Date (Section IV, #14) | B7: ='Data Input'!G102 -> 00:00:00
A8: Lease End Date including Extensions (Section IV, #17) | B8: ='Data Input'!G110 -> 1900-01-30
A10: Fixed Lease Payment Schedule (Section V, #23 & see instructions below): | B10: Amount | C10: # of Payments
A11: Payment Amount #1 & # of Payments at this amount | B11: 0 | C11: 0
A12: Payment Amount #2 & # of Payments at this amount | B12: 0 | C12: 0
A13: Payment Amount #3 & # of Payments at this amount | B13: 0 | C13: 0
A14: Payment Amount #4 & # of Payments at this amount | B14: 0 | C14: 0
A15: Totals from add'l table below (if needed) | B15: =B88 -> 0 | C15: =C88 -> 0
A16: Total Lease Payments (sum of all payment amounts * # of payments) | B16: =(B11*C11)+(B12*C12)+(B13*C13)+(B14*C14)+(B15) -> 0 | C16: =SUM(C11:C15) -> 0
A18: Other Payment Considerations (manually fill blue cells): | C18: Answers per Data Input Tab
A19: Expected Residual Value Guarantee (Section V, #26) | B19: 0 | C19: ='Data Input'!G147 -> 0
A20: Purchase Option (Section III, #9 & Section V, #27) | B20: 0 | C20: ='Data Input'!G151 -> No
A21: Termination Penalty (Section V, #28) | B21: 0 | C21: ='Data Input'!G158 -> 0
A22: Total Other Payment Considerations | B22: =SUM(B19:B21) -> 0
A23: Total Undiscounted Cash Flows (Total Payments + Other Considerations) | B23: =B16+B22 -> 0
C24: Important:
A25: Net Present Value (calculated after Macros below run) | B25: =SUM(G:G) -> 0 | C25: Do not insert/delete/move
C26: NPV must be cell B25
A27: Additions/Subtractions for Lease Asset Cost (Section III, #11-13) | B27: ='Data Input'!G80-'Data Input'!G81+'Data Input'!G82 -> 0 | C27: (macros depend on it)
A28: Lease Asset Cost (calculated after Macros below run) | B28: =B25+B27 -> 0
A30: The Agency is not required to calculate the Present Value and/or enable Macros,
A31: but Steps 1 & 2 of the instructions below are REQUIRED to be completed.
A32: After completing Steps 1 & 2, if desired to calculate the Present Value, complete Steps 3 - 8:
A34: Note 1: First make sure your Excel settings are correct - | B34: See How to Enable Macros tab
A35: Note 2: Please do not Insert, Delete, or Move any cells, columns or rows as this could cause the Macros to fail.
A36: Note 3: The Blue Cells in columns B & C are for manual input, and the Present Value Table will need to be adjusted in column F.
A37: The Orange cells in columns B & C will automatically fill. Also, the Present Value and Amortization Tables will be generated with the
A38: Macro buttons. Please do not make changes to the orange cells or anywhere within the Tables (except column F).
A40: Step 1 - Fill out the "Fixed Lease Payment Schedule" section above (starting on row 10).
A41: a - If payments escalate over time, list the beginning payment amount (col B) & # of payments to be paid at that amount (col C), then
A42: move to line #2 and list the next payment amount & # of payments at that amount, etc.
A43: b - If an extension is deemed Reasonably Certain to be exercised, but the amount is listed as "negotiable", then use the lease
A44: payment amount just prior to the date of extension for those unknown amounts.
A45: c - If a future payment is variable based on an index or interest rate, then calculate those future payments using the current index or rate.
A46: d - If there is an Abated or Free Rent period (skipped payment) indicated in the lease contract, | C46: Desc of Lease Incentives
A47: indicate that with a $0 payment amount (col B) & the number of payments to be skipped (col C). | C47: ='Data Input'!G164 -> 0
A48: Make sure to put these skipped payments in the correct order chronologically. For example, if there
A49: is a Free Rent period for payment 13, then list the first 12 payments on the first line, then
A50: line #2 as $0 (col B) and 1 (col C), then line #3 as the continuing payments after the Free Rent period.
A51: e - If a Bonus payment from the lessor is included in the contract, subtract that amount from the payment closest to the proper
A52: chronological period (as described in d above). This may cause that payment amount to be negative.
A53: f - Use the blue box below to describe how payments change over time. For example - (a) Payment increases 5% every 10 yrs;
A54: (b) Appraisal to be completed every 25 years; or (c) Payment recalculated every 5 yrs based on CPI, etc.
A55: Also describe payment frequency if Less Often than Annually.
A59: g - If payments are Less Often than Annually,indicate this in the Payment Schedule above by listing first payment on the first row (1 in
A60: col C), then the 2nd row should show how many years to be skipped in col C ($0 in col B), then the 3rd row will show the 2nd payment.
A61: Repeat until all payments & all years are represented in the Payment Schdl (total in col C should tie to total yrs of lease term & cell B4).
A62: h - If there are not enough lines in the table above, use the table below to input the additional payment amounts, and the totals from
A63: the additional table will automatically be added to the Payment Schedule above.
A64: i - Verify that the total # of payments in cell B4 is the same as the sum of col C (cell C16).
A66: Additional Lease Payment Lines (if needed) | B66: Amount | C66: # of Payments
A67: Payment Amount #5 & # of Payments at this amount | B67: 0 | C67: 0
A68: Payment Amount #6 & # of Payments at this amount | B68: 0 | C68: 0
A69: Payment Amount #7 & # of Payments at this amount | B69: 0 | C69: 0
A70: Payment Amount #8 & # of Payments at this amount | B70: 0 | C70: 0
A71: Payment Amount #9 & # of Payments at this amount | B71: 0 | C71: 0
A72: Payment Amount #10 & # of Payments at this amount | B72: 0 | C72: 0
A73: Payment Amount #11 & # of Payments at this amount | B73: 0 | C73: 0
A74: Payment Amount #12 & # of Payments at this amount | B74: 0 | C74: 0
A75: Payment Amount #13 & # of Payments at this amount | B75: 0 | C75: 0
A76: Payment Amount #14 & # of Payments at this amount | B76: 0 | C76: 0
A77: Payment Amount #15 & # of Payments at this amount | B77: 0 | C77: 0
A78: Payment Amount #16 & # of Payments at this amount | B78: 0 | C78: 0
A79: Payment Amount #17 & # of Payments at this amount | B79: 0 | C79: 0
A80: Payment Amount #18 & # of Payments at this amount | B80: 0 | C80: 0
A81: Payment Amount #19 & # of Payments at this amount | B81: 0 | C81: 0
A82: Payment Amount #20 & # of Payments at this amount | B82: 0 | C82: 0
A83: Payment Amount #21 & # of Payments at this amount | B83: 0 | C83: 0
A84: Payment Amount #22 & # of Payments at this amount | B84: 0 | C84: 0
A85: Payment Amount #23 & # of Payments at this amount | B85: 0 | C85: 0
A86: Payment Amount #24 & # of Payments at this amount | B86: 0 | C86: 0
A87: Payment Amount #25 & # of Payments at this amount | B87: 0 | C87: 0
A88: Total Add'l Lease Payments (will automatically be added to the Schedule above) | B88: =(B67*C67)+(B68*C68)+(B69*C69)+(B70*C70)+(B71*C71)+(B72*C72)+(B73*C73)+(B74*C74)+(B75*C75)+(B76*C76)+(B77*C77)+(B78*C78)+(B79*C79)+(B80*C80)+(B81*C81)+(B82*C82)+(B83*C83)+(B84*C84)+(B85*C85)+(B86*C86)+(B87*C87) -> 0 | C88: =SUM(C67:C87) -> 0
A91: Step 2 - Fill out the "Other Payment Considerations" section (starting on row 18) ONLY if instructed to do so on the Data Input tab
A92: The Residual Value Guarantee, Purchase Option & Termination Penalty lines should only have amounts listed if they are deemed
A93: Reasonably Certain to be exercised based on decisions by the Agency (responses from the Data Input tab are shown in col C).
A95: Steps 3 - 8 are OPTIONAL (calculation of Present Value and Amortization Tables)
A96: Step 3 - Click the Macro button below to Generate the first 2 columns of the Present Value (PV) Table.
A99: Step 4 - Using the Payment Schedule filled out in Steps 1 & 2, fill in the Payment Amounts into col F of the PV Table.
A100: a - If there are 12 payments for the 1st payment amount, and 6 payments for the 2nd payment amount, list the 1st amount in the
A101: first 12 rows of the Table, then the 2nd amount for the next 6 rows, and do the same for the remaining payment amounts listed
A102: in the Payment Schedule until all the payments are filled in on the Table.
A103: b - Make sure not to skip any Free Rent periods. If the Payment Schedule indicates the 13th payment is $0, then row 13 of the
A104: Table should be $0, same as the Payment Schedule.
A105: c - If there are any amounts listed for "Other Payment Considerations", add it to the final payment. For example, if the final
A106: payment is $20,000, and there is a Purchase Option listed for $500,000, then the final payment in the Table should be $520,000.
A107: d - Check to make sure that the sum of all the payments entered into col F of the Table is the same as the Total Undiscounted Cash
A108: Flows in cell B23.
A110: Step 5 - Click the Macro button below to Calculate Net Present Value and Generate the PV and Amortization Tables.
A114: Step 6 - Check data for accuracy:
A115: a - Check the date of the final payment in the Amortization Table and compare to Lease End Date in cell B8. Make sure the final
A116: payment date is reasonable in comparison to the Lease End Date (within same month if payments are Monthly, within the final
A117: quarter if Quarterly, etc).
A118: b - If payments change (there are amounts in Payment Amount #2 + rows), then check the dates the amounts change in the
A119: Amort Table (col K & M) to make sure the payments change on the correct dates as per the Lease Contract.
A120: c - If 6a and 6b are BOTH correct, skip to Step 8 (Do NOT click the Start Over Macro Button).
A121: d - If 6a or 6b does not appear to be correct:
A122: i - Double-check the Instructions above (Steps 1 - 6), including the check for # of payments in 1i & check for Table payments in 4d.
A123: ii - Double-check cells B2-B8 by reviewing the Lease Contract. These cells automatically filled based on answers in the Data Input
A124: tab. Make any necessary corrections in the Data Input tab (NOT in cells B2-B8) - the corresponding question #s are referenced above.
A125: iii - Double-Check the Payment Schedule and Other Payment Considerations sections. Compare back to the Lease contract to
A126: verify, and correct as necessary.
A127: e - Once corrections have been made, click the Macro button below to Delete the PV & Amortization Tables.
A131: Step 7 - Repeat Steps 3-6 as needed until all checks (1i, 4d, 6a, 6b, and 6di-6diii) are correct.
A133: Step 8 - See Net Present Value calculated in cell B25 for the Lease Liability and the Asset Cost in cell B28.
A134: Also, see Present Value Table in columns E-G,
A135: and Amortization Table in columns J-P.

Sheet Lease 6 - PV Calc
A1: Present Value Calculations tab - Lease 6 (column H) | B1: Contract # | C1: ='Data Input'!H35 -> 0
A2: Periodic Interest Rate (Section VI, #30-31 from Data Input tab) | B2: ='Data Input'!H184 -> 0
A3: Cash Flows at Beginning or End (Section IV, #21) | B3: ='Data Input'!H122 -> 0 | C3: Important:
A4: Number of payments (Section IV, #20) | B4: ='Data Input'!H119 -> 0 | C4: Do not insert/delete/move
A5: Frequency of payments (Section IV, #19) | B5: ='Data Input'!H115 -> 0 | C5: cells B2:B8
A6: Date of first payment (Section IV, #22) | B6: ='Data Input'!H125 -> 00:00:00 | C6: (macros depend on them)
A7: Lease Start Date (Section IV, #14) | B7: ='Data Input'!H102 -> 00:00:00
A8: Lease End Date including Extensions (Section IV, #17) | B8: ='Data Input'!H110 -> 1900-01-30
A10: Fixed Lease Payment Schedule (Section V, #23 & see instructions below): | B10: Amount | C10: # of Payments
A11: Payment Amount #1 & # of Payments at this amount | B11: 0 | C11: 0
A12: Payment Amount #2 & # of Payments at this amount | B12: 0 | C12: 0
A13: Payment Amount #3 & # of Payments at this amount | B13: 0 | C13: 0
A14: Payment Amount #4 & # of Payments at this amount | B14: 0 | C14: 0
A15: Totals from add'l table below (if needed) | B15: =B88 -> 0 | C15: =C88 -> 0
A16: Total Lease Payments (sum of all payment amounts * # of payments) | B16: =(B11*C11)+(B12*C12)+(B13*C13)+(B14*C14)+(B15) -> 0 | C16: =SUM(C11:C15) -> 0
A18: Other Payment Considerations (manually fill blue cells): | C18: Answers per Data Input Tab
A19: Expected Residual Value Guarantee (Section V, #26) | B19: 0 | C19: ='Data Input'!H147 -> 0
A20: Purchase Option (Section III, #9 & Section V, #27) | B20: 0 | C20: ='Data Input'!H151 -> No
A21: Termination Penalty (Section V, #28) | B21: 0 | C21: ='Data Input'!H158 -> 0
A22: Total Other Payment Considerations | B22: =SUM(B19:B21) -> 0
A23: Total Undiscounted Cash Flows (Total Payments + Other Considerations) | B23: =B16+B22 -> 0
C24: Important:
A25: Net Present Value (calculated after Macros below run) | B25: =SUM(G:G) -> 0 | C25: Do not insert/delete/move
C26: NPV must be cell B25
A27: Additions/Subtractions for Lease Asset Cost (Section III, #11-13) | B27: ='Data Input'!H80-'Data Input'!H81+'Data Input'!H82 -> 0 | C27: (macros depend on it)
A28: Lease Asset Cost (calculated after Macros below run) | B28: =B25+B27 -> 0
A30: The Agency is not required to calculate the Present Value and/or enable Macros,
A31: but Steps 1 & 2 of the instructions below are REQUIRED to be completed.
A32: After completing Steps 1 & 2, if desired to calculate the Present Value, complete Steps 3 - 8:
A34: Note 1: First make sure your Excel settings are correct - | B34: See How to Enable Macros tab
A35: Note 2: Please do not Insert, Delete, or Move any cells, columns or rows as this could cause the Macros to fail.
A36: Note 3: The Blue Cells in columns B & C are for manual input, and the Present Value Table will need to be adjusted in column F.
A37: The Orange cells in columns B & C will automatically fill. Also, the Present Value and Amortization Tables will be generated with the
A38: Macro buttons. Please do not make changes to the orange cells or anywhere within the Tables (except column F).
A40: Step 1 - Fill out the "Fixed Lease Payment Schedule" section above (starting on row 10).
A41: a - If payments escalate over time, list the beginning payment amount (col B) & # of payments to be paid at that amount (col C), then
A42: move to line #2 and list the next payment amount & # of payments at that amount, etc.
A43: b - If an extension is deemed Reasonably Certain to be exercised, but the amount is listed as "negotiable", then use the lease
A44: payment amount just prior to the date of extension for those unknown amounts.
A45: c - If a future payment is variable based on an index or interest rate, then calculate those future payments using the current index or rate.
A46: d - If there is an Abated or Free Rent period (skipped payment) indicated in the lease contract, | C46: Desc of Lease Incentives
A47: indicate that with a $0 payment amount (col B) & the number of payments to be skipped (col C). | C47: ='Data Input'!H164 -> 0
A48: Make sure to put these skipped payments in the correct order chronologically. For example, if there
A49: is a Free Rent period for payment 13, then list the first 12 payments on the first line, then
A50: line #2 as $0 (col B) and 1 (col C), then line #3 as the continuing payments after the Free Rent period.
A51: e - If a Bonus payment from the lessor is included in the contract, subtract that amount from the payment closest to the proper
A52: chronological period (as described in d above). This may cause that payment amount to be negative.
A53: f - Use the blue box below to describe how payments change over time. For example - (a) Payment increases 5% every 10 yrs;
A54: (b) Appraisal to be completed every 25 years; or (c) Payment recalculated every 5 yrs based on CPI, etc.
A55: Also describe payment frequency if Less Often than Annually.
A59: g - If payments are Less Often than Annually,indicate this in the Payment Schedule above by listing first payment on the first row (1 in
A60: col C), then the 2nd row should show how many years to be skipped in col C ($0 in col B), then the 3rd row will show the 2nd payment.
A61: Repeat until all payments & all years are represented in the Payment Schdl (total in col C should tie to total yrs of lease term & cell B4).
A62: h - If there are not enough lines in the table above, use the table below to input the additional payment amounts, and the totals from
A63: the additional table will automatically be added to the Payment Schedule above.
A64: i - Verify that the total # of payments in cell B4 is the same as the sum of col C (cell C16).
A66: Additional Lease Payment Lines (if needed) | B66: Amount | C66: # of Payments
A67: Payment Amount #5 & # of Payments at this amount | B67: 0 | C67: 0
A68: Payment Amount #6 & # of Payments at this amount | B68: 0 | C68: 0
A69: Payment Amount #7 & # of Payments at this amount | B69: 0 | C69: 0
A70: Payment Amount #8 & # of Payments at this amount | B70: 0 | C70: 0
A71: Payment Amount #9 & # of Payments at this amount | B71: 0 | C71: 0
A72: Payment Amount #10 & # of Payments at this amount | B72: 0 | C72: 0
A73: Payment Amount #11 & # of Payments at this amount | B73: 0 | C73: 0
A74: Payment Amount #12 & # of Payments at this amount | B74: 0 | C74: 0
A75: Payment Amount #13 & # of Payments at this amount | B75: 0 | C75: 0
A76: Payment Amount #14 & # of Payments at this amount | B76: 0 | C76: 0
A77: Payment Amount #15 & # of Payments at this amount | B77: 0 | C77: 0
A78: Payment Amount #16 & # of Payments at this amount | B78: 0 | C78: 0
A79: Payment Amount #17 & # of Payments at this amount | B79: 0 | C79: 0
A80: Payment Amount #18 & # of Payments at this amount | B80: 0 | C80: 0
A81: Payment Amount #19 & # of Payments at this amount | B81: 0 | C81: 0
A82: Payment Amount #20 & # of Payments at this amount | B82: 0 | C82: 0
A83: Payment Amount #21 & # of Payments at this amount | B83: 0 | C83: 0
A84: Payment Amount #22 & # of Payments at this amount | B84: 0 | C84: 0
A85: Payment Amount #23 & # of Payments at this amount | B85: 0 | C85: 0
A86: Payment Amount #24 & # of Payments at this amount | B86: 0 | C86: 0
A87: Payment Amount #25 & # of Payments at this amount | B87: 0 | C87: 0
A88: Total Add'l Lease Payments (will automatically be added to the Schedule above) | B88: =(B67*C67)+(B68*C68)+(B69*C69)+(B70*C70)+(B71*C71)+(B72*C72)+(B73*C73)+(B74*C74)+(B75*C75)+(B76*C76)+(B77*C77)+(B78*C78)+(B79*C79)+(B80*C80)+(B81*C81)+(B82*C82)+(B83*C83)+(B84*C84)+(B85*C85)+(B86*C86)+(B87*C87) -> 0 | C88: =SUM(C67:C87) -> 0
A91: Step 2 - Fill out the "Other Payment Considerations" section (starting on row 18) ONLY if instructed to do so on the Data Input tab
A92: The Residual Value Guarantee, Purchase Option & Termination Penalty lines should only have amounts listed if they are deemed
A93: Reasonably Certain to be exercised based on decisions by the Agency (responses from the Data Input tab are shown in col C).
A95: Steps 3 - 8 are OPTIONAL (calculation of Present Value and Amortization Tables)
A96: Step 3 - Click the Macro button below to Generate the first 2 columns of the Present Value (PV) Table.
A99: Step 4 - Using the Payment Schedule filled out in Steps 1 & 2, fill in the Payment Amounts into col F of the PV Table.
A100: a - If there are 12 payments for the 1st payment amount, and 6 payments for the 2nd payment amount, list the 1st amount in the
A101: first 12 rows of the Table, then the 2nd amount for the next 6 rows, and do the same for the remaining payment amounts listed
A102: in the Payment Schedule until all the payments are filled in on the Table.
A103: b - Make sure not to skip any Free Rent periods. If the Payment Schedule indicates the 13th payment is $0, then row 13 of the
A104: Table should be $0, same as the Payment Schedule.
A105: c - If there are any amounts listed for "Other Payment Considerations", add it to the final payment. For example, if the final
A106: payment is $20,000, and there is a Purchase Option listed for $500,000, then the final payment in the Table should be $520,000.
A107: d - Check to make sure that the sum of all the payments entered into col F of the Table is the same as the Total Undiscounted Cash
A108: Flows in cell B23.
A110: Step 5 - Click the Macro button below to Calculate Net Present Value and Generate the PV and Amortization Tables.
A114: Step 6 - Check data for accuracy:
A115: a - Check the date of the final payment in the Amortization Table and compare to Lease End Date in cell B8. Make sure the final
A116: payment date is reasonable in comparison to the Lease End Date (within same month if payments are Monthly, within the final
A117: quarter if Quarterly, etc).
A118: b - If payments change (there are amounts in Payment Amount #2 + rows), then check the dates the amounts change in the
A119: Amort Table (col K & M) to make sure the payments change on the correct dates as per the Lease Contract.
A120: c - If 6a and 6b are BOTH correct, skip to Step 8 (Do NOT click the Start Over Macro Button).
A121: d - If 6a or 6b does not appear to be correct:
A122: i - Double-check the Instructions above (Steps 1 - 6), including the check for # of payments in 1i & check for Table payments in 4d.
A123: ii - Double-check cells B2-B8 by reviewing the Lease Contract. These cells automatically filled based on answers in the Data Input
A124: tab. Make any necessary corrections in the Data Input tab (NOT in cells B2-B8) - the corresponding question #s are referenced above.
A125: iii - Double-Check the Payment Schedule and Other Payment Considerations sections. Compare back to the Lease contract to
A126: verify, and correct as necessary.
A127: e - Once corrections have been made, click the Macro button below to Delete the PV & Amortization Tables.
A131: Step 7 - Repeat Steps 3-6 as needed until all checks (1i, 4d, 6a, 6b, and 6di-6diii) are correct.
A133: Step 8 - See Net Present Value calculated in cell B25 for the Lease Liability and the Asset Cost in cell B28.
A134: Also, see Present Value Table in columns E-G,
A135: and Amortization Table in columns J-P.

Sheet Lease 7 - PV Calc
A1: Present Value Calculations tab - Lease 7 (column I) | B1: Contract # | C1: ='Data Input'!I35 -> 0
A2: Periodic Interest Rate (Section VI, #30-31 from Data Input tab) | B2: ='Data Input'!I184 -> 0
A3: Cash Flows at Beginning or End (Section IV, #21) | B3: ='Data Input'!I122 -> 0 | C3: Important:
A4: Number of payments (Section IV, #20) | B4: ='Data Input'!I119 -> 0 | C4: Do not insert/delete/move
A5: Frequency of payments (Section IV, #19) | B5: ='Data Input'!I115 -> 0 | C5: cells B2:B8
A6: Date of first payment (Section IV, #22) | B6: ='Data Input'!I125 -> 00:00:00 | C6: (macros depend on them)
A7: Lease Start Date (Section IV, #14) | B7: ='Data Input'!I102 -> 00:00:00
A8: Lease End Date including Extensions (Section IV, #17) | B8: ='Data Input'!I110 -> 1900-01-30
A10: Fixed Lease Payment Schedule (Section V, #23 & see instructions below): | B10: Amount | C10: # of Payments
A11: Payment Amount #1 & # of Payments at this amount | B11: 0 | C11: 0
A12: Payment Amount #2 & # of Payments at this amount | B12: 0 | C12: 0
A13: Payment Amount #3 & # of Payments at this amount | B13: 0 | C13: 0
A14: Payment Amount #4 & # of Payments at this amount | B14: 0 | C14: 0
A15: Totals from add'l table below (if needed) | B15: =B88 -> 0 | C15: =C88 -> 0
A16: Total Lease Payments (sum of all payment amounts * # of payments) | B16: =(B11*C11)+(B12*C12)+(B13*C13)+(B14*C14)+(B15) -> 0 | C16: =SUM(C11:C15) -> 0
A18: Other Payment Considerations (manually fill blue cells): | C18: Answers per Data Input Tab
A19: Expected Residual Value Guarantee (Section V, #26) | B19: 0 | C19: ='Data Input'!I147 -> 0
A20: Purchase Option (Section III, #9 & Section V, #27) | B20: 0 | C20: ='Data Input'!I151 -> No
A21: Termination Penalty (Section V, #28) | B21: 0 | C21: ='Data Input'!I158 -> 0
A22: Total Other Payment Considerations | B22: =SUM(B19:B21) -> 0
A23: Total Undiscounted Cash Flows (Total Payments + Other Considerations) | B23: =B16+B22 -> 0
C24: Important:
A25: Net Present Value (calculated after Macros below run) | B25: =SUM(G:G) -> 0 | C25: Do not insert/delete/move
C26: NPV must be cell B25
A27: Additions/Subtractions for Lease Asset Cost (Section III, #11-13) | B27: ='Data Input'!I80-'Data Input'!I81+'Data Input'!I82 -> 0 | C27: (macros depend on it)
A28: Lease Asset Cost (calculated after Macros below run) | B28: =B25+B27 -> 0
A30: The Agency is not required to calculate the Present Value and/or enable Macros,
A31: but Steps 1 & 2 of the instructions below are REQUIRED to be completed.
A32: After completing Steps 1 & 2, if desired to calculate the Present Value, complete Steps 3 - 8:
A34: Note 1: First make sure your Excel settings are correct - | B34: See How to Enable Macros tab
A35: Note 2: Please do not Insert, Delete, or Move any cells, columns or rows as this could cause the Macros to fail.
A36: Note 3: The Blue Cells in columns B & C are for manual input, and the Present Value Table will need to be adjusted in column F.
A37: The Orange cells in columns B & C will automatically fill. Also, the Present Value and Amortization Tables will be generated with the
A38: Macro buttons. Please do not make changes to the orange cells or anywhere within the Tables (except column F).
A40: Step 1 - Fill out the "Fixed Lease Payment Schedule" section above (starting on row 10).
A41: a - If payments escalate over time, list the beginning payment amount (col B) & # of payments to be paid at that amount (col C), then
A42: move to line #2 and list the next payment amount & # of payments at that amount, etc.
A43: b - If an extension is deemed Reasonably Certain to be exercised, but the amount is listed as "negotiable", then use the lease
A44: payment amount just prior to the date of extension for those unknown amounts.
A45: c - If a future payment is variable based on an index or interest rate, then calculate those future payments using the current index or rate.
A46: d - If there is an Abated or Free Rent period (skipped payment) indicated in the lease contract, | C46: Desc of Lease Incentives
A47: indicate that with a $0 payment amount (col B) & the number of payments to be skipped (col C). | C47: ='Data Input'!I164 -> 0
A48: Make sure to put these skipped payments in the correct order chronologically. For example, if there
A49: is a Free Rent period for payment 13, then list the first 12 payments on the first line, then
A50: line #2 as $0 (col B) and 1 (col C), then line #3 as the continuing payments after the Free Rent period.
A51: e - If a Bonus payment from the lessor is included in the contract, subtract that amount from the payment closest to the proper
A52: chronological period (as described in d above). This may cause that payment amount to be negative.
A53: f - Use the blue box below to describe how payments change over time. For example - (a) Payment increases 5% every 10 yrs;
A54: (b) Appraisal to be completed every 25 years; or (c) Payment recalculated every 5 yrs based on CPI, etc.
A55: Also describe payment frequency if Less Often than Annually.
A59: g - If payments are Less Often than Annually,indicate this in the Payment Schedule above by listing first payment on the first row (1 in
A60: col C), then the 2nd row should show how many years to be skipped in col C ($0 in col B), then the 3rd row will show the 2nd payment.
A61: Repeat until all payments & all years are represented in the Payment Schdl (total in col C should tie to total yrs of lease term & cell B4).
A62: h - If there are not enough lines in the table above, use the table below to input the additional payment amounts, and the totals from
A63: the additional table will automatically be added to the Payment Schedule above.
A64: i - Verify that the total # of payments in cell B4 is the same as the sum of col C (cell C16).
A66: Additional Lease Payment Lines (if needed) | B66: Amount | C66: # of Payments
A67: Payment Amount #5 & # of Payments at this amount | B67: 0 | C67: 0
A68: Payment Amount #6 & # of Payments at this amount | B68: 0 | C68: 0
A69: Payment Amount #7 & # of Payments at this amount | B69: 0 | C69: 0
A70: Payment Amount #8 & # of Payments at this amount | B70: 0 | C70: 0
A71: Payment Amount #9 & # of Payments at this amount | B71: 0 | C71: 0
A72: Payment Amount #10 & # of Payments at this amount | B72: 0 | C72: 0
A73: Payment Amount #11 & # of Payments at this amount | B73: 0 | C73: 0
A74: Payment Amount #12 & # of Payments at this amount | B74: 0 | C74: 0
A75: Payment Amount #13 & # of Payments at this amount | B75: 0 | C75: 0
A76: Payment Amount #14 & # of Payments at this amount | B76: 0 | C76: 0
A77: Payment Amount #15 & # of Payments at this amount | B77: 0 | C77: 0
A78: Payment Amount #16 & # of Payments at this amount | B78: 0 | C78: 0
A79: Payment Amount #17 & # of Payments at this amount | B79: 0 | C79: 0
A80: Payment Amount #18 & # of Payments at this amount | B80: 0 | C80: 0
A81: Payment Amount #19 & # of Payments at this amount | B81: 0 | C81: 0
A82: Payment Amount #20 & # of Payments at this amount | B82: 0 | C82: 0
A83: Payment Amount #21 & # of Payments at this amount | B83: 0 | C83: 0
A84: Payment Amount #22 & # of Payments at this amount | B84: 0 | C84: 0
A85: Payment Amount #23 & # of Payments at this amount | B85: 0 | C85: 0
A86: Payment Amount #24 & # of Payments at this amount | B86: 0 | C86: 0
A87: Payment Amount #25 & # of Payments at this amount | B87: 0 | C87: 0
A88: Total Add'l Lease Payments (will automatically be added to the Schedule above) | B88: =(B67*C67)+(B68*C68)+(B69*C69)+(B70*C70)+(B71*C71)+(B72*C72)+(B73*C73)+(B74*C74)+(B75*C75)+(B76*C76)+(B77*C77)+(B78*C78)+(B79*C79)+(B80*C80)+(B81*C81)+(B82*C82)+(B83*C83)+(B84*C84)+(B85*C85)+(B86*C86)+(B87*C87) -> 0 | C88: =SUM(C67:C87) -> 0
A91: Step 2 - Fill out the "Other Payment Considerations" section (starting on row 18) ONLY if instructed to do so on the Data Input tab
A92: The Residual Value Guarantee, Purchase Option & Termination Penalty lines should only have amounts listed if they are deemed
A93: Reasonably Certain to be exercised based on decisions by the Agency (responses from the Data Input tab are shown in col C).
A95: Steps 3 - 8 are OPTIONAL (calculation of Present Value and Amortization Tables)
A96: Step 3 - Click the Macro button below to Generate the first 2 columns of the Present Value (PV) Table.
A99: Step 4 - Using the Payment Schedule filled out in Steps 1 & 2, fill in the Payment Amounts into col F of the PV Table.
A100: a - If there are 12 payments for the 1st payment amount, and 6 payments for the 2nd payment amount, list the 1st amount in the
A101: first 12 rows of the Table, then the 2nd amount for the next 6 rows, and do the same for the remaining payment amounts listed
A102: in the Payment Schedule until all the payments are filled in on the Table.
A103: b - Make sure not to skip any Free Rent periods. If the Payment Schedule indicates the 13th payment is $0, then row 13 of the
A104: Table should be $0, same as the Payment Schedule.
A105: c - If there are any amounts listed for "Other Payment Considerations", add it to the final payment. For example, if the final
A106: payment is $20,000, and there is a Purchase Option listed for $500,000, then the final payment in the Table should be $520,000.
A107: d - Check to make sure that the sum of all the payments entered into col F of the Table is the same as the Total Undiscounted Cash
A108: Flows in cell B23.
A110: Step 5 - Click the Macro button below to Calculate Net Present Value and Generate the PV and Amortization Tables.
A114: Step 6 - Check data for accuracy:
A115: a - Check the date of the final payment in the Amortization Table and compare to Lease End Date in cell B8. Make sure the final
A116: payment date is reasonable in comparison to the Lease End Date (within same month if payments are Monthly, within the final
A117: quarter if Quarterly, etc).
A118: b - If payments change (there are amounts in Payment Amount #2 + rows), then check the dates the amounts change in the
A119: Amort Table (col K & M) to make sure the payments change on the correct dates as per the Lease Contract.
A120: c - If 6a and 6b are BOTH correct, skip to Step 8 (Do NOT click the Start Over Macro Button).
A121: d - If 6a or 6b does not appear to be correct:
A122: i - Double-check the Instructions above (Steps 1 - 6), including the check for # of payments in 1i & check for Table payments in 4d.
A123: ii - Double-check cells B2-B8 by reviewing the Lease Contract. These cells automatically filled based on answers in the Data Input
A124: tab. Make any necessary corrections in the Data Input tab (NOT in cells B2-B8) - the corresponding question #s are referenced above.
A125: iii - Double-Check the Payment Schedule and Other Payment Considerations sections. Compare back to the Lease contract to
A126: verify, and correct as necessary.
A127: e - Once corrections have been made, click the Macro button below to Delete the PV & Amortization Tables.
A131: Step 7 - Repeat Steps 3-6 as needed until all checks (1i, 4d, 6a, 6b, and 6di-6diii) are correct.
A133: Step 8 - See Net Present Value calculated in cell B25 for the Lease Liability and the Asset Cost in cell B28.
A134: Also, see Present Value Table in columns E-G,
A135: and Amortization Table in columns J-P.

Sheet Lease 8 - PV Calc
A1: Present Value Calculations tab - Lease 8 (column J) | B1: Contract # | C1: ='Data Input'!J35 -> 0
A2: Periodic Interest Rate (Section VI, #30-31 from Data Input tab) | B2: ='Data Input'!J184 -> 0
A3: Cash Flows at Beginning or End (Section IV, #21) | B3: ='Data Input'!J122 -> 0 | C3: Important:
A4: Number of payments (Section IV, #20) | B4: ='Data Input'!J119 -> 0 | C4: Do not insert/delete/move
A5: Frequency of payments (Section IV, #19) | B5: ='Data Input'!J115 -> 0 | C5: cells B2:B8
A6: Date of first payment (Section IV, #22) | B6: ='Data Input'!J125 -> 00:00:00 | C6: (macros depend on them)
A7: Lease Start Date (Section IV, #14) | B7: ='Data Input'!J102 -> 00:00:00
A8: Lease End Date including Extensions (Section IV, #17) | B8: ='Data Input'!J110 -> 1900-01-30
A10: Fixed Lease Payment Schedule (Section V, #23 & see instructions below): | B10: Amount | C10: # of Payments
A11: Payment Amount #1 & # of Payments at this amount | B11: 0 | C11: 0
A12: Payment Amount #2 & # of Payments at this amount | B12: 0 | C12: 0
A13: Payment Amount #3 & # of Payments at this amount | B13: 0 | C13: 0
A14: Payment Amount #4 & # of Payments at this amount | B14: 0 | C14: 0
A15: Totals from add'l table below (if needed) | B15: =B88 -> 0 | C15: =C88 -> 0
A16: Total Lease Payments (sum of all payment amounts * # of payments) | B16: =(B11*C11)+(B12*C12)+(B13*C13)+(B14*C14)+(B15) -> 0 | C16: =SUM(C11:C15) -> 0
A18: Other Payment Considerations (manually fill blue cells): | C18: Answers per Data Input Tab
A19: Expected Residual Value Guarantee (Section V, #26) | B19: 0 | C19: ='Data Input'!J147 -> 0
A20: Purchase Option (Section III, #9 & Section V, #27) | B20: 0 | C20: ='Data Input'!J151 -> No
A21: Termination Penalty (Section V, #28) | B21: 0 | C21: ='Data Input'!J158 -> 0
A22: Total Other Payment Considerations | B22: =SUM(B19:B21) -> 0
A23: Total Undiscounted Cash Flows (Total Payments + Other Considerations) | B23: =B16+B22 -> 0
C24: Important:
A25: Net Present Value (calculated after Macros below run) | B25: =SUM(G:G) -> 0 | C25: Do not insert/delete/move
C26: NPV must be cell B25
A27: Additions/Subtractions for Lease Asset Cost (Section III, #11-13) | B27: ='Data Input'!J80-'Data Input'!J81+'Data Input'!J82 -> 0 | C27: (macros depend on it)
A28: Lease Asset Cost (calculated after Macros below run) | B28: =B25+B27 -> 0
A30: The Agency is not required to calculate the Present Value and/or enable Macros,
A31: but Steps 1 & 2 of the instructions below are REQUIRED to be completed.
A32: After completing Steps 1 & 2, if desired to calculate the Present Value, complete Steps 3 - 8:
A34: Note 1: First make sure your Excel settings are correct - | B34: See How to Enable Macros tab
A35: Note 2: Please do not Insert, Delete, or Move any cells, columns or rows as this could cause the Macros to fail.
A36: Note 3: The Blue Cells in columns B & C are for manual input, and the Present Value Table will need to be adjusted in column F.
A37: The Orange cells in columns B & C will automatically fill. Also, the Present Value and Amortization Tables will be generated with the
A38: Macro buttons. Please do not make changes to the orange cells or anywhere within the Tables (except column F).
A40: Step 1 - Fill out the "Fixed Lease Payment Schedule" section above (starting on row 10).
A41: a - If payments escalate over time, list the beginning payment amount (col B) & # of payments to be paid at that amount (col C), then
A42: move to line #2 and list the next payment amount & # of payments at that amount, etc.
A43: b - If an extension is deemed Reasonably Certain to be exercised, but the amount is listed as "negotiable", then use the lease
A44: payment amount just prior to the date of extension for those unknown amounts.
A45: c - If a future payment is variable based on an index or interest rate, then calculate those future payments using the current index or rate.
A46: d - If there is an Abated or Free Rent period (skipped payment) indicated in the lease contract, | C46: Desc of Lease Incentives
A47: indicate that with a $0 payment amount (col B) & the number of payments to be skipped (col C). | C47: ='Data Input'!J164 -> 0
A48: Make sure to put these skipped payments in the correct order chronologically. For example, if there
A49: is a Free Rent period for payment 13, then list the first 12 payments on the first line, then
A50: line #2 as $0 (col B) and 1 (col C), then line #3 as the continuing payments after the Free Rent period.
A51: e - If a Bonus payment from the lessor is included in the contract, subtract that amount from the payment closest to the proper
A52: chronological period (as described in d above). This may cause that payment amount to be negative.
A53: f - Use the blue box below to describe how payments change over time. For example - (a) Payment increases 5% every 10 yrs;
A54: (b) Appraisal to be completed every 25 years; or (c) Payment recalculated every 5 yrs based on CPI, etc.
A55: Also describe payment frequency if Less Often than Annually.
A59: g - If payments are Less Often than Annually,indicate this in the Payment Schedule above by listing first payment on the first row (1 in
A60: col C), then the 2nd row should show how many years to be skipped in col C ($0 in col B), then the 3rd row will show the 2nd payment.
A61: Repeat until all payments & all years are represented in the Payment Schdl (total in col C should tie to total yrs of lease term & cell B4).
A62: h - If there are not enough lines in the table above, use the table below to input the additional payment amounts, and the totals from
A63: the additional table will automatically be added to the Payment Schedule above.
A64: i - Verify that the total # of payments in cell B4 is the same as the sum of col C (cell C16).
A66: Additional Lease Payment Lines (if needed) | B66: Amount | C66: # of Payments
A67: Payment Amount #5 & # of Payments at this amount | B67: 0 | C67: 0
A68: Payment Amount #6 & # of Payments at this amount | B68: 0 | C68: 0
A69: Payment Amount #7 & # of Payments at this amount | B69: 0 | C69: 0
A70: Payment Amount #8 & # of Payments at this amount | B70: 0 | C70: 0
A71: Payment Amount #9 & # of Payments at this amount | B71: 0 | C71: 0
A72: Payment Amount #10 & # of Payments at this amount | B72: 0 | C72: 0
A73: Payment Amount #11 & # of Payments at this amount | B73: 0 | C73: 0
A74: Payment Amount #12 & # of Payments at this amount | B74: 0 | C74: 0
A75: Payment Amount #13 & # of Payments at this amount | B75: 0 | C75: 0
A76: Payment Amount #14 & # of Payments at this amount | B76: 0 | C76: 0
A77: Payment Amount #15 & # of Payments at this amount | B77: 0 | C77: 0
A78: Payment Amount #16 & # of Payments at this amount | B78: 0 | C78: 0
A79: Payment Amount #17 & # of Payments at this amount | B79: 0 | C79: 0
A80: Payment Amount #18 & # of Payments at this amount | B80: 0 | C80: 0
A81: Payment Amount #19 & # of Payments at this amount | B81: 0 | C81: 0
A82: Payment Amount #20 & # of Payments at this amount | B82: 0 | C82: 0
A83: Payment Amount #21 & # of Payments at this amount | B83: 0 | C83: 0
A84: Payment Amount #22 & # of Payments at this amount | B84: 0 | C84: 0
A85: Payment Amount #23 & # of Payments at this amount | B85: 0 | C85: 0
A86: Payment Amount #24 & # of Payments at this amount | B86: 0 | C86: 0
A87: Payment Amount #25 & # of Payments at this amount | B87: 0 | C87: 0
A88: Total Add'l Lease Payments (will automatically be added to the Schedule above) | B88: =(B67*C67)+(B68*C68)+(B69*C69)+(B70*C70)+(B71*C71)+(B72*C72)+(B73*C73)+(B74*C74)+(B75*C75)+(B76*C76)+(B77*C77)+(B78*C78)+(B79*C79)+(B80*C80)+(B81*C81)+(B82*C82)+(B83*C83)+(B84*C84)+(B85*C85)+(B86*C86)+(B87*C87) -> 0 | C88: =SUM(C67:C87) -> 0
A91: Step 2 - Fill out the "Other Payment Considerations" section (starting on row 18) ONLY if instructed to do so on the Data Input tab
A92: The Residual Value Guarantee, Purchase Option & Termination Penalty lines should only have amounts listed if they are deemed
A93: Reasonably Certain to be exercised based on decisions by the Agency (responses from the Data Input tab are shown in col C).
A95: Steps 3 - 8 are OPTIONAL (calculation of Present Value and Amortization Tables)
A96: Step 3 - Click the Macro button below to Generate the first 2 columns of the Present Value (PV) Table.
A99: Step 4 - Using the Payment Schedule filled out in Steps 1 & 2, fill in the Payment Amounts into col F of the PV Table.
A100: a - If there are 12 payments for the 1st payment amount, and 6 payments for the 2nd payment amount, list the 1st amount in the
A101: first 12 rows of the Table, then the 2nd amount for the next 6 rows, and do the same for the remaining payment amounts listed
A102: in the Payment Schedule until all the payments are filled in on the Table.
A103: b - Make sure not to skip any Free Rent periods. If the Payment Schedule indicates the 13th payment is $0, then row 13 of the
A104: Table should be $0, same as the Payment Schedule.
A105: c - If there are any amounts listed for "Other Payment Considerations", add it to the final payment. For example, if the final
A106: payment is $20,000, and there is a Purchase Option listed for $500,000, then the final payment in the Table should be $520,000.
A107: d - Check to make sure that the sum of all the payments entered into col F of the Table is the same as the Total Undiscounted Cash
A108: Flows in cell B23.
A110: Step 5 - Click the Macro button below to Calculate Net Present Value and Generate the PV and Amortization Tables.
A114: Step 6 - Check data for accuracy:
A115: a - Check the date of the final payment in the Amortization Table and compare to Lease End Date in cell B8. Make sure the final
A116: payment date is reasonable in comparison to the Lease End Date (within same month if payments are Monthly, within the final
A117: quarter if Quarterly, etc).
A118: b - If payments change (there are amounts in Payment Amount #2 + rows), then check the dates the amounts change in the
A119: Amort Table (col K & M) to make sure the payments change on the correct dates as per the Lease Contract.
A120: c - If 6a and 6b are BOTH correct, skip to Step 8 (Do NOT click the Start Over Macro Button).
A121: d - If 6a or 6b does not appear to be correct:
A122: i - Double-check the Instructions above (Steps 1 - 6), including the check for # of payments in 1i & check for Table payments in 4d.
A123: ii - Double-check cells B2-B8 by reviewing the Lease Contract. These cells automatically filled based on answers in the Data Input
A124: tab. Make any necessary corrections in the Data Input tab (NOT in cells B2-B8) - the corresponding question #s are referenced above.
A125: iii - Double-Check the Payment Schedule and Other Payment Considerations sections. Compare back to the Lease contract to
A126: verify, and correct as necessary.
A127: e - Once corrections have been made, click the Macro button below to Delete the PV & Amortization Tables.
A131: Step 7 - Repeat Steps 3-6 as needed until all checks (1i, 4d, 6a, 6b, and 6di-6diii) are correct.
A133: Step 8 - See Net Present Value calculated in cell B25 for the Lease Liability and the Asset Cost in cell B28.
A134: Also, see Present Value Table in columns E-G,
A135: and Amortization Table in columns J-P.

Sheet Lease 9 - PV Calc
A1: Present Value Calculations tab - Lease 9 (column K) | B1: Contract # | C1: ='Data Input'!K35 -> 0
A2: Periodic Interest Rate (Section VI, #30-31 from Data Input tab) | B2: ='Data Input'!K184 -> 0
A3: Cash Flows at Beginning or End (Section IV, #21) | B3: ='Data Input'!K122 -> 0 | C3: Important:
A4: Number of payments (Section IV, #20) | B4: ='Data Input'!K119 -> 0 | C4: Do not insert/delete/move
A5: Frequency of payments (Section IV, #19) | B5: ='Data Input'!K115 -> 0 | C5: cells B2:B8
A6: Date of first payment (Section IV, #22) | B6: ='Data Input'!K125 -> 00:00:00 | C6: (macros depend on them)
A7: Lease Start Date (Section IV, #14) | B7: ='Data Input'!K102 -> 00:00:00
A8: Lease End Date including Extensions (Section IV, #17) | B8: ='Data Input'!K110 -> 1900-01-30
A10: Fixed Lease Payment Schedule (Section V, #23 & see instructions below): | B10: Amount | C10: # of Payments
A11: Payment Amount #1 & # of Payments at this amount | B11: 0 | C11: 0
A12: Payment Amount #2 & # of Payments at this amount | B12: 0 | C12: 0
A13: Payment Amount #3 & # of Payments at this amount | B13: 0 | C13: 0
A14: Payment Amount #4 & # of Payments at this amount | B14: 0 | C14: 0
A15: Totals from add'l table below (if needed) | B15: =B88 -> 0 | C15: =C88 -> 0
A16: Total Lease Payments (sum of all payment amounts * # of payments) | B16: =(B11*C11)+(B12*C12)+(B13*C13)+(B14*C14)+(B15) -> 0 | C16: =SUM(C11:C15) -> 0
A18: Other Payment Considerations (manually fill blue cells): | C18: Answers per Data Input Tab
A19: Expected Residual Value Guarantee (Section V, #26) | B19: 0 | C19: ='Data Input'!K147 -> 0
A20: Purchase Option (Section III, #9 & Section V, #27) | B20: 0 | C20: ='Data Input'!K151 -> No
A21: Termination Penalty (Section V, #28) | B21: 0 | C21: ='Data Input'!K158 -> 0
A22: Total Other Payment Considerations | B22: =SUM(B19:B21) -> 0
A23: Total Undiscounted Cash Flows (Total Payments + Other Considerations) | B23: =B16+B22 -> 0
C24: Important:
A25: Net Present Value (calculated after Macros below run) | B25: =SUM(G:G) -> 0 | C25: Do not insert/delete/move
C26: NPV must be cell B25
A27: Additions/Subtractions for Lease Asset Cost (Section III, #11-13) | B27: ='Data Input'!K80-'Data Input'!K81+'Data Input'!K82 -> 0 | C27: (macros depend on it)
A28: Lease Asset Cost (calculated after Macros below run) | B28: =B25+B27 -> 0
A30: The Agency is not required to calculate the Present Value and/or enable Macros,
A31: but Steps 1 & 2 of the instructions below are REQUIRED to be completed.
A32: After completing Steps 1 & 2, if desired to calculate the Present Value, complete Steps 3 - 8:
A34: Note 1: First make sure your Excel settings are correct - | B34: See How to Enable Macros tab
A35: Note 2: Please do not Insert, Delete, or Move any cells, columns or rows as this could cause the Macros to fail.
A36: Note 3: The Blue Cells in columns B & C are for manual input, and the Present Value Table will need to be adjusted in column F.
A37: The Orange cells in columns B & C will automatically fill. Also, the Present Value and Amortization Tables will be generated with the
A38: Macro buttons. Please do not make changes to the orange cells or anywhere within the Tables (except column F).
A40: Step 1 - Fill out the "Fixed Lease Payment Schedule" section above (starting on row 10).
A41: a - If payments escalate over time, list the beginning payment amount (col B) & # of payments to be paid at that amount (col C), then
A42: move to line #2 and list the next payment amount & # of payments at that amount, etc.
A43: b - If an extension is deemed Reasonably Certain to be exercised, but the amount is listed as "negotiable", then use the lease
A44: payment amount just prior to the date of extension for those unknown amounts.
A45: c - If a future payment is variable based on an index or interest rate, then calculate those future payments using the current index or rate.
A46: d - If there is an Abated or Free Rent period (skipped payment) indicated in the lease contract, | C46: Desc of Lease Incentives
A47: indicate that with a $0 payment amount (col B) & the number of payments to be skipped (col C). | C47: ='Data Input'!K164 -> 0
A48: Make sure to put these skipped payments in the correct order chronologically. For example, if there
A49: is a Free Rent period for payment 13, then list the first 12 payments on the first line, then
A50: line #2 as $0 (col B) and 1 (col C), then line #3 as the continuing payments after the Free Rent period.
A51: e - If a Bonus payment from the lessor is included in the contract, subtract that amount from the payment closest to the proper
A52: chronological period (as described in d above). This may cause that payment amount to be negative.
A53: f - Use the blue box below to describe how payments change over time. For example - (a) Payment increases 5% every 10 yrs;
A54: (b) Appraisal to be completed every 25 years; or (c) Payment recalculated every 5 yrs based on CPI, etc.
A55: Also describe payment frequency if Less Often than Annually.
A59: g - If payments are Less Often than Annually,indicate this in the Payment Schedule above by listing first payment on the first row (1 in
A60: col C), then the 2nd row should show how many years to be skipped in col C ($0 in col B), then the 3rd row will show the 2nd payment.
A61: Repeat until all payments & all years are represented in the Payment Schdl (total in col C should tie to total yrs of lease term & cell B4).
A62: h - If there are not enough lines in the table above, use the table below to input the additional payment amounts, and the totals from
A63: the additional table will automatically be added to the Payment Schedule above.
A64: i - Verify that the total # of payments in cell B4 is the same as the sum of col C (cell C16).
A66: Additional Lease Payment Lines (if needed) | B66: Amount | C66: # of Payments
A67: Payment Amount #5 & # of Payments at this amount | B67: 0 | C67: 0
A68: Payment Amount #6 & # of Payments at this amount | B68: 0 | C68: 0
A69: Payment Amount #7 & # of Payments at this amount | B69: 0 | C69: 0
A70: Payment Amount #8 & # of Payments at this amount | B70: 0 | C70: 0
A71: Payment Amount #9 & # of Payments at this amount | B71: 0 | C71: 0
A72: Payment Amount #10 & # of Payments at this amount | B72: 0 | C72: 0
A73: Payment Amount #11 & # of Payments at this amount | B73: 0 | C73: 0
A74: Payment Amount #12 & # of Payments at this amount | B74: 0 | C74: 0
A75: Payment Amount #13 & # of Payments at this amount | B75: 0 | C75: 0
A76: Payment Amount #14 & # of Payments at this amount | B76: 0 | C76: 0
A77: Payment Amount #15 & # of Payments at this amount | B77: 0 | C77: 0
A78: Payment Amount #16 & # of Payments at this amount | B78: 0 | C78: 0
A79: Payment Amount #17 & # of Payments at this amount | B79: 0 | C79: 0
A80: Payment Amount #18 & # of Payments at this amount | B80: 0 | C80: 0
A81: Payment Amount #19 & # of Payments at this amount | B81: 0 | C81: 0
A82: Payment Amount #20 & # of Payments at this amount | B82: 0 | C82: 0
A83: Payment Amount #21 & # of Payments at this amount | B83: 0 | C83: 0
A84: Payment Amount #22 & # of Payments at this amount | B84: 0 | C84: 0
A85: Payment Amount #23 & # of Payments at this amount | B85: 0 | C85: 0
A86: Payment Amount #24 & # of Payments at this amount | B86: 0 | C86: 0
A87: Payment Amount #25 & # of Payments at this amount | B87: 0 | C87: 0
A88: Total Add'l Lease Payments (will automatically be added to the Schedule above) | B88: =(B67*C67)+(B68*C68)+(B69*C69)+(B70*C70)+(B71*C71)+(B72*C72)+(B73*C73)+(B74*C74)+(B75*C75)+(B76*C76)+(B77*C77)+(B78*C78)+(B79*C79)+(B80*C80)+(B81*C81)+(B82*C82)+(B83*C83)+(B84*C84)+(B85*C85)+(B86*C86)+(B87*C87) -> 0 | C88: =SUM(C67:C87) -> 0
A91: Step 2 - Fill out the "Other Payment Considerations" section (starting on row 18) ONLY if instructed to do so on the Data Input tab
A92: The Residual Value Guarantee, Purchase Option & Termination Penalty lines should only have amounts listed if they are deemed
A93: Reasonably Certain to be exercised based on decisions by the Agency (responses from the Data Input tab are shown in col C).
A95: Steps 3 - 8 are OPTIONAL (calculation of Present Value and Amortization Tables)
A96: Step 3 - Click the Macro button below to Generate the first 2 columns of the Present Value (PV) Table.
A99: Step 4 - Using the Payment Schedule filled out in Steps 1 & 2, fill in the Payment Amounts into col F of the PV Table.
A100: a - If there are 12 payments for the 1st payment amount, and 6 payments for the 2nd payment amount, list the 1st amount in the
A101: first 12 rows of the Table, then the 2nd amount for the next 6 rows, and do the same for the remaining payment amounts listed
A102: in the Payment Schedule until all the payments are filled in on the Table.
A103: b - Make sure not to skip any Free Rent periods. If the Payment Schedule indicates the 13th payment is $0, then row 13 of the
A104: Table should be $0, same as the Payment Schedule.
A105: c - If there are any amounts listed for "Other Payment Considerations", add it to the final payment. For example, if the final
A106: payment is $20,000, and there is a Purchase Option listed for $500,000, then the final payment in the Table should be $520,000.
A107: d - Check to make sure that the sum of all the payments entered into col F of the Table is the same as the Total Undiscounted Cash
A108: Flows in cell B23.
A110: Step 5 - Click the Macro button below to Calculate Net Present Value and Generate the PV and Amortization Tables.
A114: Step 6 - Check data for accuracy:
A115: a - Check the date of the final payment in the Amortization Table and compare to Lease End Date in cell B8. Make sure the final
A116: payment date is reasonable in comparison to the Lease End Date (within same month if payments are Monthly, within the final
A117: quarter if Quarterly, etc).
A118: b - If payments change (there are amounts in Payment Amount #2 + rows), then check the dates the amounts change in the
A119: Amort Table (col K & M) to make sure the payments change on the correct dates as per the Lease Contract.
A120: c - If 6a and 6b are BOTH correct, skip to Step 8 (Do NOT click the Start Over Macro Button).
A121: d - If 6a or 6b does not appear to be correct:
A122: i - Double-check the Instructions above (Steps 1 - 6), including the check for # of payments in 1i & check for Table payments in 4d.
A123: ii - Double-check cells B2-B8 by reviewing the Lease Contract. These cells automatically filled based on answers in the Data Input
A124: tab. Make any necessary corrections in the Data Input tab (NOT in cells B2-B8) - the corresponding question #s are referenced above.
A125: iii - Double-Check the Payment Schedule and Other Payment Considerations sections. Compare back to the Lease contract to
A126: verify, and correct as necessary.
A127: e - Once corrections have been made, click the Macro button below to Delete the PV & Amortization Tables.
A131: Step 7 - Repeat Steps 3-6 as needed until all checks (1i, 4d, 6a, 6b, and 6di-6diii) are correct.
A133: Step 8 - See Net Present Value calculated in cell B25 for the Lease Liability and the Asset Cost in cell B28.
A134: Also, see Present Value Table in columns E-G,
A135: and Amortization Table in columns J-P.

Sheet Lease 10 - PV Calc
A1: Present Value Calculations tab - Lease 10 (column L) | B1: Contract # | C1: ='Data Input'!L35 -> 0
A2: Periodic Interest Rate (Section VI, #30-31 from Data Input tab) | B2: ='Data Input'!L184 -> 0
A3: Cash Flows at Beginning or End (Section IV, #21) | B3: ='Data Input'!L122 -> 0 | C3: Important:
A4: Number of payments (Section IV, #20) | B4: ='Data Input'!L119 -> 0 | C4: Do not insert/delete/move
A5: Frequency of payments (Section IV, #19) | B5: ='Data Input'!L115 -> 0 | C5: cells B2:B8
A6: Date of first payment (Section IV, #22) | B6: ='Data Input'!L125 -> 00:00:00 | C6: (macros depend on them)
A7: Lease Start Date (Section IV, #14) | B7: ='Data Input'!L102 -> 00:00:00
A8: Lease End Date including Extensions (Section IV, #17) | B8: ='Data Input'!L110 -> 1900-01-30
A10: Fixed Lease Payment Schedule (Section V, #23 & see instructions below): | B10: Amount | C10: # of Payments
A11: Payment Amount #1 & # of Payments at this amount | B11: 0 | C11: 0
A12: Payment Amount #2 & # of Payments at this amount | B12: 0 | C12: 0
A13: Payment Amount #3 & # of Payments at this amount | B13: 0 | C13: 0
A14: Payment Amount #4 & # of Payments at this amount | B14: 0 | C14: 0
A15: Totals from add'l table below (if needed) | B15: =B88 -> 0 | C15: =C88 -> 0
A16: Total Lease Payments (sum of all payment amounts * # of payments) | B16: =(B11*C11)+(B12*C12)+(B13*C13)+(B14*C14)+(B15) -> 0 | C16: =SUM(C11:C15) -> 0
A18: Other Payment Considerations (manually fill blue cells): | C18: Answers per Data Input Tab
A19: Expected Residual Value Guarantee (Section V, #26) | B19: 0 | C19: ='Data Input'!L147 -> 0
A20: Purchase Option (Section III, #9 & Section V, #27) | B20: 0 | C20: ='Data Input'!L151 -> No
A21: Termination Penalty (Section V, #28) | B21: 0 | C21: ='Data Input'!L158 -> 0
A22: Total Other Payment Considerations | B22: =SUM(B19:B21) -> 0
A23: Total Undiscounted Cash Flows (Total Payments + Other Considerations) | B23: =B16+B22 -> 0
C24: Important:
A25: Net Present Value (calculated after Macros below run) | B25: =SUM(G:G) -> 0 | C25: Do not insert/delete/move
C26: NPV must be cell B25
A27: Additions/Subtractions for Lease Asset Cost (Section III, #11-13) | B27: ='Data Input'!L80-'Data Input'!L81+'Data Input'!L82 -> 0 | C27: (macros depend on it)
A28: Lease Asset Cost (calculated after Macros below run) | B28: =B25+B27 -> 0
A30: The Agency is not required to calculate the Present Value and/or enable Macros,
A31: but Steps 1 & 2 of the instructions below are REQUIRED to be completed.
A32: After completing Steps 1 & 2, if desired to calculate the Present Value, complete Steps 3 - 8:
A34: Note 1: First make sure your Excel settings are correct - | B34: See How to Enable Macros tab
A35: Note 2: Please do not Insert, Delete, or Move any cells, columns or rows as this could cause the Macros to fail.
A36: Note 3: The Blue Cells in columns B & C are for manual input, and the Present Value Table will need to be adjusted in column F.
A37: The Orange cells in columns B & C will automatically fill. Also, the Present Value and Amortization Tables will be generated with the
A38: Macro buttons. Please do not make changes to the orange cells or anywhere within the Tables (except column F).
A40: Step 1 - Fill out the "Fixed Lease Payment Schedule" section above (starting on row 10).
A41: a - If payments escalate over time, list the beginning payment amount (col B) & # of payments to be paid at that amount (col C), then
A42: move to line #2 and list the next payment amount & # of payments at that amount, etc.
A43: b - If an extension is deemed Reasonably Certain to be exercised, but the amount is listed as "negotiable", then use the lease
A44: payment amount just prior to the date of extension for those unknown amounts.
A45: c - If a future payment is variable based on an index or interest rate, then calculate those future payments using the current index or rate.
A46: d - If there is an Abated or Free Rent period (skipped payment) indicated in the lease contract, | C46: Desc of Lease Incentives
A47: indicate that with a $0 payment amount (col B) & the number of payments to be skipped (col C). | C47: ='Data Input'!L164 -> 0
A48: Make sure to put these skipped payments in the correct order chronologically. For example, if there
A49: is a Free Rent period for payment 13, then list the first 12 payments on the first line, then
A50: line #2 as $0 (col B) and 1 (col C), then line #3 as the continuing payments after the Free Rent period.
A51: e - If a Bonus payment from the lessor is included in the contract, subtract that amount from the payment closest to the proper
A52: chronological period (as described in d above). This may cause that payment amount to be negative.
A53: f - Use the blue box below to describe how payments change over time. For example - (a) Payment increases 5% every 10 yrs;
A54: (b) Appraisal to be completed every 25 years; or (c) Payment recalculated every 5 yrs based on CPI, etc.
A55: Also describe payment frequency if Less Often than Annually.
A59: g - If payments are Less Often than Annually,indicate this in the Payment Schedule above by listing first payment on the first row (1 in
A60: col C), then the 2nd row should show how many years to be skipped in col C ($0 in col B), then the 3rd row will show the 2nd payment.
A61: Repeat until all payments & all years are represented in the Payment Schdl (total in col C should tie to total yrs of lease term & cell B4).
A62: h - If there are not enough lines in the table above, use the table below to input the additional payment amounts, and the totals from
A63: the additional table will automatically be added to the Payment Schedule above.
A64: i - Verify that the total # of payments in cell B4 is the same as the sum of col C (cell C16).
A66: Additional Lease Payment Lines (if needed) | B66: Amount | C66: # of Payments
A67: Payment Amount #5 & # of Payments at this amount | B67: 0 | C67: 0
A68: Payment Amount #6 & # of Payments at this amount | B68: 0 | C68: 0
A69: Payment Amount #7 & # of Payments at this amount | B69: 0 | C69: 0
A70: Payment Amount #8 & # of Payments at this amount | B70: 0 | C70: 0
A71: Payment Amount #9 & # of Payments at this amount | B71: 0 | C71: 0
A72: Payment Amount #10 & # of Payments at this amount | B72: 0 | C72: 0
A73: Payment Amount #11 & # of Payments at this amount | B73: 0 | C73: 0
A74: Payment Amount #12 & # of Payments at this amount | B74: 0 | C74: 0
A75: Payment Amount #13 & # of Payments at this amount | B75: 0 | C75: 0
A76: Payment Amount #14 & # of Payments at this amount | B76: 0 | C76: 0
A77: Payment Amount #15 & # of Payments at this amount | B77: 0 | C77: 0
A78: Payment Amount #16 & # of Payments at this amount | B78: 0 | C78: 0
A79: Payment Amount #17 & # of Payments at this amount | B79: 0 | C79: 0
A80: Payment Amount #18 & # of Payments at this amount | B80: 0 | C80: 0
A81: Payment Amount #19 & # of Payments at this amount | B81: 0 | C81: 0
A82: Payment Amount #20 & # of Payments at this amount | B82: 0 | C82: 0
A83: Payment Amount #21 & # of Payments at this amount | B83: 0 | C83: 0
A84: Payment Amount #22 & # of Payments at this amount | B84: 0 | C84: 0
A85: Payment Amount #23 & # of Payments at this amount | B85: 0 | C85: 0
A86: Payment Amount #24 & # of Payments at this amount | B86: 0 | C86: 0
A87: Payment Amount #25 & # of Payments at this amount | B87: 0 | C87: 0
A88: Total Add'l Lease Payments (will automatically be added to the Schedule above) | B88: =(B67*C67)+(B68*C68)+(B69*C69)+(B70*C70)+(B71*C71)+(B72*C72)+(B73*C73)+(B74*C74)+(B75*C75)+(B76*C76)+(B77*C77)+(B78*C78)+(B79*C79)+(B80*C80)+(B81*C81)+(B82*C82)+(B83*C83)+(B84*C84)+(B85*C85)+(B86*C86)+(B87*C87) -> 0 | C88: =SUM(C67:C87) -> 0
A91: Step 2 - Fill out the "Other Payment Considerations" section (starting on row 18) ONLY if instructed to do so on the Data Input tab
A92: The Residual Value Guarantee, Purchase Option & Termination Penalty lines should only have amounts listed if they are deemed
A93: Reasonably Certain to be exercised based on decisions by the Agency (responses from the Data Input tab are shown in col C).
A95: Steps 3 - 8 are OPTIONAL (calculation of Present Value and Amortization Tables)
A96: Step 3 - Click the Macro button below to Generate the first 2 columns of the Present Value (PV) Table.
A99: Step 4 - Using the Payment Schedule filled out in Steps 1 & 2, fill in the Payment Amounts into col F of the PV Table.
A100: a - If there are 12 payments for the 1st payment amount, and 6 payments for the 2nd payment amount, list the 1st amount in the
A101: first 12 rows of the Table, then the 2nd amount for the next 6 rows, and do the same for the remaining payment amounts listed
A102: in the Payment Schedule until all the payments are filled in on the Table.
A103: b - Make sure not to skip any Free Rent periods. If the Payment Schedule indicates the 13th payment is $0, then row 13 of the
A104: Table should be $0, same as the Payment Schedule.
A105: c - If there are any amounts listed for "Other Payment Considerations", add it to the final payment. For example, if the final
A106: payment is $20,000, and there is a Purchase Option listed for $500,000, then the final payment in the Table should be $520,000.
A107: d - Check to make sure that the sum of all the payments entered into col F of the Table is the same as the Total Undiscounted Cash
A108: Flows in cell B23.
A110: Step 5 - Click the Macro button below to Calculate Net Present Value and Generate the PV and Amortization Tables.
A114: Step 6 - Check data for accuracy:
A115: a - Check the date of the final payment in the Amortization Table and compare to Lease End Date in cell B8. Make sure the final
A116: payment date is reasonable in comparison to the Lease End Date (within same month if payments are Monthly, within the final
A117: quarter if Quarterly, etc).
A118: b - If payments change (there are amounts in Payment Amount #2 + rows), then check the dates the amounts change in the
A119: Amort Table (col K & M) to make sure the payments change on the correct dates as per the Lease Contract.
A120: c - If 6a and 6b are BOTH correct, skip to Step 8 (Do NOT click the Start Over Macro Button).
A121: d - If 6a or 6b does not appear to be correct:
A122: i - Double-check the Instructions above (Steps 1 - 6), including the check for # of payments in 1i & check for Table payments in 4d.
A123: ii - Double-check cells B2-B8 by reviewing the Lease Contract. These cells automatically filled based on answers in the Data Input
A124: tab. Make any necessary corrections in the Data Input tab (NOT in cells B2-B8) - the corresponding question #s are referenced above.
A125: iii - Double-Check the Payment Schedule and Other Payment Considerations sections. Compare back to the Lease contract to
A126: verify, and correct as necessary.
A127: e - Once corrections have been made, click the Macro button below to Delete the PV & Amortization Tables.
A131: Step 7 - Repeat Steps 3-6 as needed until all checks (1i, 4d, 6a, 6b, and 6di-6diii) are correct.
A133: Step 8 - See Net Present Value calculated in cell B25 for the Lease Liability and the Asset Cost in cell B28.
A134: Also, see Present Value Table in columns E-G,
A135: and Amortization Table in columns J-P.

Sheet VLookup
A1: Asset Type | B1: For | D1: Useful Life in Months
A2: Constructed Building | B2: Office Space | C2: =CONCATENATE(A2," - ",B2) -> Constructed Building - Office Space | D2: 480
A3: Manufactured Building (non-permanent) | B3: Office Space | C3: =CONCATENATE(A3," - ",B3) -> Manufactured Building (non-permanent) - Office Space | D3: 300
A4: Vehicles | B4: Aircraft | C4: Vehicles - Aircraft | D4: 180
A5: Vehicles | B5: Heavy Duty Truck | C5: Vehicles - Heavy Duty Truck | D5: 84
A6: Vehicles | B6: Regular truck/car | C6: Vehicles - Regular truck/car | D6: 60
A7: Equipment | B7: Furniture | C7: Equipment - Furniture | D7: 60
A8: Equipment | B8: IT Equipment | C8: Equipment - IT Equipment | D8: 60
A9: Equipment | B9: Telecommunications | C9: Equipment - Telecommunications | D9: 60
A10: Equipment | B10: Other Office Equipment | C10: Equipment - Other Office Equipment | D10: 60
A11: Land | C11: Land | D11: N/A
C12: Right-of-way | D12: N/A
A14: Fixed Asset Catalog Description | C14: Useful Life in Months
A15: Leased Constructed Buildings (Office Space) | C15: 480
A16: Leased Buildings: Prefabricated (Office Space) | C16: 300
A17: Leased Mainframe Computer | C17: 60
A18: Leased Servers | C18: 60
A19: Leased Desktop Computer | C19: 60
A20: Leased Multifunction (print/scan/fax/copy) workgroup printer | C20: 60
A21: Leased Airplane | C21: 180
A22: Leased Automobiles & Station Wagons | C22: 60
A23: Leased Trucks (Heavy) | C23: 84
A24: Leased Mass Transportation: Transit Bus | C24: 84
A25: Leased Radio, Sound and Telecomm. Equipment | C25: 60
A26: Leased Land Improvements | C26: 480
A27: Leased Improvements Other than Land & Building Improvements | C27: 180
A28: Leased Tangible Rights of Way | C28: Not Depreciable
A29: Leased Land | C29: Not Depreciable

Sheet Drop Down List
A2: Asset Type
A3: Land
A4: Building
A5: Equipment
A6: Other
A8: Payment System
A9: AFIS
A10: APP
A12: Yes / No / N/A
A13: Yes
A14: No
A15: N/A
A18: Payment frequency
A19: Monthly
A20: Quarterly
A21: Semi-annually
A22: Annually
A24: Payment B or E
A25: Begin
A26: End
A28: Payments Equal / Residual Value?
A29: Yes
A30: No - Fill out on PV Calc Tab
A31: N/A
A33: Purchase Option / Termination Penalty?
A34: Yes - Fill out on PV Calc Tab
A35: No
A36: N/A
A38: One source / divided
A39: One Source
A40: Divided - Fill out Gen Extra Info Tab
A42: Type of Division
A43: Specific $ amount
A44: Percentage (%)
A46: Planned Cancellation
A47: Yes - use Planned End Date for Lease End Date
A48: No
